Workbook

Sheet Sheet1
A1: 120201 | B1: 9 | C1: 0 | D1: 2 | E1: 9 | F1: 34 | G1: -6.1 | H1: 485 | I1: 2 | J1: 215 | K1: 7 | L1: 0 | M1: 0 | N1: 0 | O1: 9.1 | P1: 37 | Q1: -4.8 | R1: 8.8 | S1: 35 | T1: -5.8 | U1: 485 | V1: 8.8 | W1: 39 | X1: -4.4 | Y1: 7.7 | Z1: 5.7 | AA1: 6.4 | AB1: 52.3 | AE1: Date and Time | AF1: Temperature | AG1: Humidity
A2: 120201 | B2: 9 | C2: 0 | D2: 7 | E2: 9 | F2: 34 | G2: -6.1 | H2: 485 | I2: 2 | J2: 215 | K2: 7 | L2: 0 | M2: 0 | N2: 0 | O2: 9.1 | P2: 37 | Q2: -4.8 | R2: 8.8 | S2: 35 | T2: -5.8 | U2: 485 | V2: 8.8 | W2: 39 | X2: -4.4 | Y2: 7.7 | Z2: 5.7 | AA2: 6.4 | AB2: 52.3 | AE2: 2012-02-01T09:00:00 | AF2: =AVERAGE(E1:E720) -> 11.70625 | AG2: =AVERAGE(F1:F720) -> 28.48888889
A3: 120201 | B3: 9 | C3: 0 | D3: 12 | E3: 9 | F3: 34 | G3: -6.1 | H3: 485 | I3: 2 | J3: 215 | K3: 7 | L3: 0 | M3: 0 | N3: 0 | O3: 9.1 | P3: 37 | Q3: -4.7 | R3: 8.8 | S3: 35 | T3: -5.8 | U3: 485 | V3: 8.8 | W3: 39 | X3: -4.4 | Y3: 7.7 | Z3: 5.7 | AA3: 6.4 | AB3: 52.3 | AE3: 2012-02-01T10:00:00 | AF3: =AVERAGE(E721:E1440) -> 15.32208333 | AG3: =AVERAGE(F721:F1440) -> 21.91944444
A4: 120201 | B4: 9 | C4: 0 | D4: 17 | E4: 9 | F4: 33 | G4: -6.3 | H4: 485 | I4: 2 | J4: 215 | K4: 7 | L4: 0 | M4: 0 | N4: 0 | O4: 9.1 | P4: 37 | Q4: -4.7 | R4: 8.8 | S4: 35 | T4: -5.8 | U4: 485 | V4: 8.8 | W4: 39 | X4: -4.4 | Y4: 7.7 | Z4: 5.7 | AA4: 6.4 | AB4: 52.3 | AE4: 2012-02-01T11:00:00 | AF4: =AVERAGE(E1441:E2160) -> 17.56819444 | AG4: =AVERAGE(F1441:F2160) -> 19.775
A5: 120201 | B5: 9 | C5: 0 | D5: 23 | E5: 8.8 | F5: 34 | G5: -6.3 | H5: 485 | I5: 2 | J5: 215 | K5: 7 | L5: 0 | M5: 0 | N5: 0 | O5: 9.1 | P5: 38 | Q5: -4.6 | R5: 8.8 | S5: 35 | T5: -5.8 | U5: 485 | V5: 8.8 | W5: 39 | X5: -4.4 | Y5: 7.7 | Z5: 5.7 | AA5: 6.4 | AB5: 52.3 | AE5: 2012-02-01T12:00:00 | AF5: =AVERAGE(E2161:E2880) -> 19.37194444 | AG5: =AVERAGE(F2161:F2880) -> 16.85555556
A6: 120201 | B6: 9 | C6: 0 | D6: 27 | E6: 8.8 | F6: 34 | G6: -6.1 | H6: 485 | I6: 2 | J6: 215 | K6: 7 | L6: 0 | M6: 0 | N6: 0 | O6: 9.1 | P6: 38 | Q6: -4.6 | R6: 8.8 | S6: 35 | T6: -5.8 | U6: 485 | V6: 8.8 | W6: 39 | X6: -4.4 | Y6: 7.7 | Z6: 5.7 | AA6: 6.4 | AB6: 52.3 | AE6: 2012-02-01T13:00:00 | AF6: =AVERAGE(E2881:E3600) -> 20.41277778 | AG6: =AVERAGE(F2881:F3600) -> 14.15833333
A7: 120201 | B7: 9 | C7: 0 | D7: 32 | E7: 8.8 | F7: 34 | G7: -6.1 | H7: 485 | I7: 2 | J7: 215 | K7: 7 | L7: 0 | M7: 0 | N7: 0 | O7: 9.2 | P7: 38 | Q7: -4.4 | R7: 8.8 | S7: 35 | T7: -5.8 | U7: 485 | V7: 8.8 | W7: 39 | X7: -4.4 | Y7: 7.7 | Z7: 5.7 | AA7: 6.4 | AB7: 52.3 | AE7: 2012-02-01T14:00:00 | AF7: =AVERAGE(E3601:E4320) -> 21.54569444 | AG7: =AVERAGE(F3601:F4320) -> 13.1625
A8: 120201 | B8: 9 | C8: 0 | D8: 37 | E8: 8.8 | F8: 34 | G8: -6.1 | H8: 485 | I8: 5 | J8: 208 | K8: 7 | L8: 0 | M8: 0 | N8: 0 | O8: 9.2 | P8: 38 | Q8: -4.4 | R8: 8.8 | S8: 35 | T8: -5.8 | U8: 485 | V8: 8.8 | W8: 39 | X8: -4.4 | Y8: 7.7 | Z8: 5.7 | AA8: 6.4 | AB8: 52.3 | AE8: 2012-02-01T15:00:00 | AF8: =AVERAGE(E4321:E5040) -> 21.59916667 | AG8: =AVERAGE(F4321:F5040) -> 12.66944444
A9: 120201 | B9: 9 | C9: 0 | D9: 42 | E9: 8.8 | F9: 34 | G9: -6.2 | H9: 485 | I9: 5 | J9: 208 | K9: 7 | L9: 0 | M9: 0 | N9: 0 | O9: 9.2 | P9: 38 | Q9: -4.4 | R9: 8.8 | S9: 35 | T9: -5.8 | U9: 485 | V9: 8.8 | W9: 39 | X9: -4.4 | Y9: 7.7 | Z9: 5.7 | AA9: 6.4 | AB9: 52.3 | AE9: 2012-02-01T16:00:00 | AF9: =AVERAGE(E5041:E5760) -> 21.61 | AG9: =AVERAGE(F5041:F5760) -> 12.38055556
A10: 120201 | B10: 9 | C10: 0 | D10: 47 | E10: 8.8 | F10: 34 | G10: -6.1 | H10: 485 | I10: 5 | J10: 208 | K10: 7 | L10: 0 | M10: 0 | N10: 0 | O10: 9.2 | P10: 38 | Q10: -4.5 | R10: 8.8 | S10: 35 | T10: -5.8 | U10: 485 | V10: 8.8 | W10: 39 | X10: -4.4 | Y10: 7.7 | Z10: 5.7 | AA10: 6.4 | AB10: 52.3 | AE10: 2012-02-01T17:00:00 | AF10: =AVERAGE(E5761:E6480) -> 20.84041667 | AG10: =AVERAGE(F5761:F6480) -> 13.47222222
A11: 120201 | B11: 9 | C11: 0 | D11: 52 | E11: 8.8 | F11: 34 | G11: -6 | H11: 485 | I11: 5 | J11: 208 | K11: 7 | L11: 0 | M11: 0 | N11: 0 | O11: 9.2 | P11: 38 | Q11: -4.4 | R11: 8.8 | S11: 35 | T11: -5.8 | U11: 485 | V11: 8.8 | W11: 39 | X11: -4.4 | Y11: 7.7 | Z11: 5.7 | AA11: 6.4 | AB11: 52.3 | AE11: 2012-02-01T18:00:00 | AF11: =AVERAGE(E6481:E7200) -> 18.70611111 | AG11: =AVERAGE(F6481:F7200) -> 17.14861111
A12: 120201 | B12: 9 | C12: 0 | D12: 57 | E12: 8.8 | F12: 34 | G12: -6 | H12: 485 | I12: 5 | J12: 208 | K12: 7 | L12: 0 | M12: 0 | N12: 0 | O12: 9.2 | P12: 38 | Q12: -4.4 | R12: 8.8 | S12: 35 | T12: -5.8 | U12: 485 | V12: 8.8 | W12: 39 | X12: -4.4 | Y12: 7.7 | Z12: 5.7 | AA12: 6.4 | AB12: 52.3 | AE12: 2012-02-01T19:00:00 | AF12: =AVERAGE(E7201:E7920) -> 17.32069444 | AG12: =AVERAGE(F7201:F7920) -> 20.18055556
A13: 120201 | B13: 9 | C13: 1 | D13: 2 | E13: 9 | F13: 35 | G13: -5.7 | H13: 485 | I13: 5 | J13: 208 | K13: 7 | L13: 0 | M13: 0 | N13: 0 | O13: 9.3 | P13: 39 | Q13: -4 | R13: 8.8 | S13: 35 | T13: -5.8 | U13: 485 | V13: 8.8 | W13: 39 | X13: -4.4 | Y13: 7.7 | Z13: 5.7 | AA13: 6.4 | AB13: 52.3 | AE13: 2012-02-01T20:00:00 | AF13: =AVERAGE(E7921:E8640) -> 16.13763889 | AG13: =AVERAGE(F7921:F8640) -> 22.2625
A14: 120201 | B14: 9 | C14: 1 | D14: 7 | E14: 9 | F14: 34 | G14: -5.9 | H14: 485 | I14: 5 | J14: 208 | K14: 7 | L14: 0 | M14: 0 | N14: 0 | O14: 9.3 | P14: 38 | Q14: -4.2 | R14: 8.8 | S14: 35 | T14: -5.8 | U14: 485 | V14: 8.8 | W14: 39 | X14: -4.4 | Y14: 7.7 | Z14: 5.7 | AA14: 6.4 | AB14: 52.3 | AE14: 2012-02-01T21:00:00 | AF14: =AVERAGE(E8641:E9360) -> 14.23583333 | AG14: =AVERAGE(F8641:F9360) -> 24.22222222
A15: 120201 | B15: 9 | C15: 1 | D15: 13 | E15: 9 | F15: 34 | G15: -6 | H15: 485 | I15: 5 | J15: 208 | K15: 7 | L15: 0 | M15: 0 | N15: 0 | O15: 9.3 | P15: 40 | Q15: -3.7 | R15: 8.8 | S15: 35 | T15: -5.8 | U15: 485 | V15: 8.8 | W15: 39 | X15: -4.4 | Y15: 7.7 | Z15: 5.7 | AA15: 6.4 | AB15: 52.3 | AE15: 2012-02-01T22:00:00 | AF15: =AVERAGE(E9361:E10080) -> 13.35805556 | AG15: =AVERAGE(F9361:F10080) -> 23.46111111
A16: 120201 | B16: 9 | C16: 1 | D16: 17 | E16: 9 | F16: 34 | G16: -6.2 | H16: 485 | I16: 5 | J16: 208 | K16: 7 | L16: 0 | M16: 0 | N16: 0 | O16: 9.3 | P16: 41 | Q16: -3.4 | R16: 8.8 | S16: 35 | T16: -5.8 | U16: 485 | V16: 8.8 | W16: 39 | X16: -4.4 | Y16: 7.7 | Z16: 5.7 | AA16: 6.4 | AB16: 52.3 | AE16: 2012-02-01T23:00:00 | AF16: =AVERAGE(E10081:E10800) -> 12.38972222 | AG16: =AVERAGE(F10081:F10800) -> 26.49444444
A17: 120201 | B17: 9 | C17: 1 | D17: 22 | E17: 9 | F17: 34 | G17: -6 | H17: 485 | I17: 5 | J17: 208 | K17: 7 | L17: 0 | M17: 0 | N17: 0 | O17: 9.5 | P17: 38 | Q17: -4 | R17: 8.8 | S17: 35 | T17: -5.8 | U17: 485 | V17: 8.8 | W17: 39 | X17: -4.4 | Y17: 7.7 | Z17: 5.7 | AA17: 6.4 | AB17: 52.3 | AE17: 2012-02-02 | AF17: =AVERAGE(E10801:E11520) -> 10.96347222 | AG17: =AVERAGE(F10801:F11520) -> 28.17638889
A18: 120201 | B18: 9 | C18: 1 | D18: 27 | E18: 9 | F18: 34 | G18: -6.1 | H18: 485 | I18: 5 | J18: 208 | K18: 7 | L18: 0 | M18: 0 | N18: 0 | O18: 9.5 | P18: 38 | Q18: -4 | R18: 8.8 | S18: 35 | T18: -5.8 | U18: 485 | V18: 8.8 | W18: 39 | X18: -4.4 | Y18: 7.7 | Z18: 5.7 | AA18: 6.4 | AB18: 52.3 | AE18: 2012-02-02T01:00:00 | AF18: =AVERAGE(E11521:E12240) -> 10.3075 | AG18: =AVERAGE(F11521:F12240) -> 27.10138889
A19: 120201 | B19: 9 | C19: 1 | D19: 32 | E19: 9 | F19: 34 | G19: -6 | H19: 485 | I19: 5 | J19: 208 | K19: 7 | L19: 0 | M19: 0 | N19: 0 | O19: 9.5 | P19: 38 | Q19: -4 | R19: 8.8 | S19: 35 | T19: -5.8 | U19: 485 | V19: 8.8 | W19: 39 | X19: -4.4 | Y19: 7.7 | Z19: 5.7 | AA19: 6.4 | AB19: 52.3 | AE19: 2012-02-02T02:00:00 | AF19: =AVERAGE(E12241:E12960) -> 9.943472222 | AG19: =AVERAGE(F12241:F12960) -> 27.57083333
A20: 120201 | B20: 9 | C20: 1 | D20: 37 | E20: 9.1 | F20: 34 | G20: -5.9 | H20: 485 | I20: 5 | J20: 208 | K20: 7 | L20: 0 | M20: 0 | N20: 0 | O20: 9.5 | P20: 38 | Q20: -4.1 | R20: 8.8 | S20: 35 | T20: -5.8 | U20: 485 | V20: 8.8 | W20: 39 | X20: -4.4 | Y20: 7.7 | Z20: 5.7 | AA20: 6.4 | AB20: 52.3 | AE20: 2012-02-02T03:00:00.001 | AF20: =AVERAGE(E12961:E13680) -> 8.33375 | AG20: =AVERAGE(F12961:F13680) -> 32.20972222
A21: 120201 | B21: 9 | C21: 1 | D21: 42 | E21: 9.1 | F21: 34 | G21: -6.1 | H21: 485 | I21: 5 | J21: 208 | K21: 7 | L21: 0 | M21: 0 | N21: 0 | O21: 9.5 | P21: 39 | Q21: -3.7 | R21: 8.8 | S21: 35 | T21: -5.8 | U21: 485 | V21: 8.8 | W21: 39 | X21: -4.4 | Y21: 7.7 | Z21: 5.7 | AA21: 6.4 | AB21: 52.3 | AE21: 2012-02-02T04:00:00.001 | AF21: =AVERAGE(E13681:E14400) -> 8.086944444 | AG21: =AVERAGE(F13681:F14400) -> 32.97638889
A22: 120201 | B22: 9 | C22: 1 | D22: 47 | E22: 9.1 | F22: 33 | G22: -6.2 | H22: 485 | I22: 5 | J22: 208 | K22: 7 | L22: 0 | M22: 0 | N22: 0 | O22: 9.5 | P22: 39 | Q22: -3.8 | R22: 8.8 | S22: 35 | T22: -5.8 | U22: 485 | V22: 8.8 | W22: 39 | X22: -4.4 | Y22: 7.7 | Z22: 5.7 | AA22: 6.4 | AB22: 52.3 | AE22: 2012-02-02T05:00:00.001 | AF22: =AVERAGE(E14401:E15120) -> 6.352638889 | AG22: =AVERAGE(F14401:F15120) -> 37.6
A23: 120201 | B23: 9 | C23: 1 | D23: 52 | E23: 9.1 | F23: 34 | G23: -5.8 | H23: 485 | I23: 5 | J23: 208 | K23: 7 | L23: 0 | M23: 0 | N23: 0 | O23: 9.5 | P23: 39 | Q23: -3.7 | R23: 8.8 | S23: 35 | T23: -5.8 | U23: 485 | V23: 8.8 | W23: 39 | X23: -4.4 | Y23: 7.7 | Z23: 5.7 | AA23: 6.4 | AB23: 52.3 | AE23: 2012-02-02T06:00:00.001 | AF23: =AVERAGE(E15121:E15840) -> 6.098472222 | AG23: =AVERAGE(F15121:F15840) -> 36.60833333
A24: 120201 | B24: 9 | C24: 1 | D24: 57 | E24: 9.1 | F24: 33 | G24: -6.1 | H24: 485 | I24: 5 | J24: 208 | K24: 7 | L24: 0 | M24: 0 | N24: 0 | O24: 9.5 | P24: 39 | Q24: -3.7 | R24: 8.8 | S24: 35 | T24: -5.8 | U24: 485 | V24: 8.8 | W24: 39 | X24: -4.4 | Y24: 7.7 | Z24: 5.7 | AA24: 6.4 | AB24: 52.3 | AE24: 2012-02-02T07:00:00.001 | AF24: =AVERAGE(E15841:E16560) -> 5.779166667 | AG24: =AVERAGE(F15841:F16560) -> 37.29583333
A25: 120201 | B25: 9 | C25: 2 | D25: 2 | E25: 9.1 | F25: 34 | G25: -5.9 | H25: 485 | I25: 5 | J25: 208 | K25: 7 | L25: 0 | M25: 0 | N25: 0 | O25: 9.6 | P25: 39 | Q25: -3.8 | R25: 8.8 | S25: 35 | T25: -5.8 | U25: 485 | V25: 8.8 | W25: 39 | X25: -4.4 | Y25: 7.7 | Z25: 5.7 | AA25: 6.4 | AB25: 52.3 | AE25: =AE24+0.041666667 -> 2012-02-02T08:00:00.001 | AF25: =AVERAGE(E16561:E17280) -> 7.195277778 | AG25: =AVERAGE(F16561:F17280) -> 32.53055556
A26: 120201 | B26: 9 | C26: 2 | D26: 7 | E26: 9.2 | F26: 34 | G26: -5.9 | H26: 485 | I26: 5 | J26: 208 | K26: 7 | L26: 0 | M26: 0 | N26: 0 | O26: 9.6 | P26: 38 | Q26: -4 | R26: 8.8 | S26: 35 | T26: -5.8 | U26: 485 | V26: 8.8 | W26: 39 | X26: -4.4 | Y26: 7.7 | Z26: 5.7 | AA26: 6.4 | AB26: 52.3 | AE26: =AE25+0.041666667 -> 2012-02-02T09:00:00.001 | AF26: =AVERAGE(E17281:E18000) -> 9.623333333 | AG26: =AVERAGE(F17281:F18000) -> 27.92083333
A27: 120201 | B27: 9 | C27: 2 | D27: 13 | E27: 9.2 | F27: 34 | G27: -5.9 | H27: 485 | I27: 5 | J27: 208 | K27: 7 | L27: 0 | M27: 0 | N27: 0 | O27: 9.5 | P27: 37 | Q27: -4.4 | R27: 8.8 | S27: 35 | T27: -5.8 | U27: 485 | V27: 8.8 | W27: 39 | X27: -4.4 | Y27: 7.7 | Z27: 5.7 | AA27: 6.4 | AB27: 52.3 | AE27: 2012-02-02T10:00:00.001 | AF27: =AVERAGE(E18001:E18720) -> 13.04097222 | AG27: =AVERAGE(F18001:F18720) -> 22.04861111
A28: 120201 | B28: 9 | C28: 2 | D28: 17 | E28: 9.2 | F28: 34 | G28: -5.9 | H28: 485 | I28: 5 | J28: 208 | K28: 7 | L28: 0 | M28: 0 | N28: 0 | O28: 9.5 | P28: 37 | Q28: -4.5 | R28: 8.8 | S28: 35 | T28: -5.8 | U28: 485 | V28: 8.8 | W28: 39 | X28: -4.4 | Y28: 7.7 | Z28: 5.7 | AA28: 6.4 | AB28: 52.3 | AE28: 2012-02-02T11:00:00.001 | AF28: =AVERAGE(E18721:E19440) -> 15.55444444 | AG28: =AVERAGE(F18721:F19440) -> 18.39583333
A29: 120201 | B29: 9 | C29: 2 | D29: 22 | E29: 9.2 | F29: 34 | G29: -5.9 | H29: 485 | I29: 5 | J29: 208 | K29: 7 | L29: 0 | M29: 0 | N29: 0 | O29: 9.5 | P29: 37 | Q29: -4.6 | R29: 8.8 | S29: 35 | T29: -5.8 | U29: 485 | V29: 8.8 | W29: 39 | X29: -4.4 | Y29: 7.7 | Z29: 5.7 | AA29: 6.4 | AB29: 52.3 | AE29: 2012-02-02T12:00:00.001 | AF29: =AVERAGE(E19441:E20160) -> 17.08541667 | AG29: =AVERAGE(F19441:F20160) -> 17.28333333
A30: 120201 | B30: 9 | C30: 2 | D30: 27 | E30: 9.2 | F30: 34 | G30: -5.8 | H30: 485 | I30: 5 | J30: 208 | K30: 7 | L30: 0 | M30: 0 | N30: 0 | O30: 9.5 | P30: 37 | Q30: -4.6 | R30: 8.8 | S30: 35 | T30: -5.8 | U30: 485 | V30: 8.8 | W30: 39 | X30: -4.4 | Y30: 7.7 | Z30: 5.7 | AA30: 6.4 | AB30: 52.3 | AE30: 2012-02-02T13:00:00.001 | AF30: =AVERAGE(E20161:E20880) -> 17.71958333 | AG30: =AVERAGE(F20161:F20880) -> 15.66944444
A31: 120201 | B31: 9 | C31: 2 | D31: 32 | E31: 9.2 | F31: 33 | G31: -6 | H31: 485 | I31: 5 | J31: 208 | K31: 7 | L31: 0 | M31: 0 | N31: 0 | O31: 9.5 | P31: 36 | Q31: -4.7 | R31: 8.8 | S31: 35 | T31: -5.8 | U31: 485 | V31: 8.8 | W31: 39 | X31: -4.4 | Y31: 7.7 | Z31: 5.7 | AA31: 6.4 | AB31: 52.3 | AE31: 2012-02-02T14:00:00.001 | AF31: =AVERAGE(E20881:E21600) -> 17.51583333 | AG31: =AVERAGE(F20881:F21600) -> 13.63194444
A32: 120201 | B32: 9 | C32: 2 | D32: 37 | E32: 9.4 | F32: 33 | G32: -6 | H32: 485 | I32: 6 | J32: 199 | K32: 9 | L32: 0 | M32: 0 | N32: 0 | O32: 9.5 | P32: 37 | Q32: -4.6 | R32: 9.1 | S32: 34 | T32: -5.9 | U32: 485 | V32: 9.2 | W32: 38 | X32: -4.3 | Y32: 7.7 | Z32: 5.7 | AA32: 6.4 | AB32: 52.3 | AE32: 2012-02-02T15:00:00.001 | AF32: =AVERAGE(E21601:E22320) -> 17.32611111 | AG32: =AVERAGE(F21601:F22320) -> 11.8875
A33: 120201 | B33: 9 | C33: 2 | D33: 42 | E33: 9.4 | F33: 33 | G33: -5.9 | H33: 485 | I33: 6 | J33: 199 | K33: 9 | L33: 0 | M33: 0 | N33: 0 | O33: 9.5 | P33: 37 | Q33: -4.6 | R33: 9.1 | S33: 34 | T33: -5.9 | U33: 485 | V33: 9.2 | W33: 38 | X33: -4.3 | Y33: 7.7 | Z33: 5.7 | AA33: 6.4 | AB33: 52.3 | AE33: 2012-02-02T16:00:00.001 | AF33: =AVERAGE(E22321:E23040) -> 16.57208333 | AG33: =AVERAGE(F22321:F23040) -> 14.11666667
A34: 120201 | B34: 9 | C34: 2 | D34: 47 | E34: 9.4 | F34: 33 | G34: -6.2 | H34: 485 | I34: 6 | J34: 199 | K34: 9 | L34: 0 | M34: 0 | N34: 0 | O34: 9.5 | P34: 37 | Q34: -4.5 | R34: 9.1 | S34: 34 | T34: -5.9 | U34: 485 | V34: 9.2 | W34: 38 | X34: -4.3 | Y34: 7.7 | Z34: 5.7 | AA34: 6.4 | AB34: 52.3 | AE34: 2012-02-02T17:00:00.001 | AF34: =AVERAGE(E23041:E23760) -> 15.59152778 | AG34: =AVERAGE(F23041:F23760) -> 17.45416667
A35: 120201 | B35: 9 | C35: 2 | D35: 52 | E35: 9.4 | F35: 34 | G35: -5.8 | H35: 485 | I35: 6 | J35: 199 | K35: 9 | L35: 0 | M35: 0 | N35: 0 | O35: 9.5 | P35: 37 | Q35: -4.6 | R35: 9.1 | S35: 34 | T35: -5.9 | U35: 485 | V35: 9.2 | W35: 38 | X35: -4.3 | Y35: 7.7 | Z35: 5.7 | AA35: 6.4 | AB35: 52.3 | AE35: 2012-02-02T18:00:00.001 | AF35: =AVERAGE(E23761:E24480) -> 14.27069444 | AG35: =AVERAGE(F23761:F24480) -> 20.16944444
A36: 120201 | B36: 9 | C36: 2 | D36: 57 | E36: 9.4 | F36: 33 | G36: -5.9 | H36: 485 | I36: 6 | J36: 199 | K36: 9 | L36: 0 | M36: 0 | N36: 0 | O36: 9.5 | P36: 37 | Q36: -4.6 | R36: 9.1 | S36: 34 | T36: -5.9 | U36: 485 | V36: 9.2 | W36: 38 | X36: -4.3 | Y36: 7.7 | Z36: 5.7 | AA36: 6.4 | AB36: 52.3 | AE36: 2012-02-02T19:00:00.001 | AF36: =AVERAGE(E24481:E25200) -> 12.84416667 | AG36: =AVERAGE(F24481:F25200) -> 21.025
A37: 120201 | B37: 9 | C37: 3 | D37: 2 | E37: 9.4 | F37: 33 | G37: -5.9 | H37: 485 | I37: 6 | J37: 199 | K37: 9 | L37: 0 | M37: 0 | N37: 0 | O37: 9.5 | P37: 37 | Q37: -4.6 | R37: 9.1 | S37: 34 | T37: -5.9 | U37: 485 | V37: 9.2 | W37: 38 | X37: -4.3 | Y37: 7.7 | Z37: 5.7 | AA37: 6.4 | AB37: 52.3 | AE37: 2012-02-02T20:00:00.001 | AF37: =AVERAGE(E25201:E25921) -> 11.89223301 | AG37: =AVERAGE(F25201:F25921) -> 22.08737864
A38: 120201 | B38: 9 | C38: 3 | D38: 7 | E38: 9.4 | F38: 33 | G38: -5.9 | H38: 485 | I38: 6 | J38: 199 | K38: 9 | L38: 0 | M38: 0 | N38: 0 | O38: 9.5 | P38: 37 | Q38: -4.6 | R38: 9.1 | S38: 34 | T38: -5.9 | U38: 485 | V38: 9.2 | W38: 38 | X38: -4.3 | Y38: 7.7 | Z38: 5.7 | AA38: 6.4 | AB38: 52.3 | AE38: 2012-02-02T21:00:00.001 | AF38: =AVERAGE(E25921:E26640) -> 11.24888889 | AG38: =AVERAGE(F25921:F26640) -> 23.06527778
A39: 120201 | B39: 9 | C39: 3 | D39: 12 | E39: 9.4 | F39: 33 | G39: -5.9 | H39: 485 | I39: 6 | J39: 199 | K39: 9 | L39: 0 | M39: 0 | N39: 0 | O39: 9.5 | P39: 37 | Q39: -4.6 | R39: 9.1 | S39: 34 | T39: -5.9 | U39: 485 | V39: 9.2 | W39: 38 | X39: -4.3 | Y39: 7.7 | Z39: 5.7 | AA39: 6.4 | AB39: 52.3 | AE39: 2012-02-02T22:00:00.001 | AF39: =AVERAGE(E26641:E27360) -> 9.972777778 | AG39: =AVERAGE(F26641:F27360) -> 25.59305556
A40: 120201 | B40: 9 | C40: 3 | D40: 17 | E40: 9.4 | F40: 33 | G40: -6 | H40: 485 | I40: 6 | J40: 199 | K40: 9 | L40: 0 | M40: 0 | N40: 0 | O40: 9.5 | P40: 37 | Q40: -4.5 | R40: 9.1 | S40: 34 | T40: -5.9 | U40: 485 | V40: 9.2 | W40: 38 | X40: -4.3 | Y40: 7.7 | Z40: 5.7 | AA40: 6.4 | AB40: 52.3 | AE40: 2012-02-02T23:00:00.001 | AF40: =AVERAGE(E27361:E28080) -> 9.56875 | AG40: =AVERAGE(F27361:F28080) -> 26.55833333
A41: 120201 | B41: 9 | C41: 3 | D41: 22 | E41: 9.4 | F41: 34 | G41: -5.7 | H41: 485 | I41: 6 | J41: 199 | K41: 9 | L41: 0 | M41: 0 | N41: 0 | O41: 9.5 | P41: 37 | Q41: -4.6 | R41: 9.1 | S41: 34 | T41: -5.9 | U41: 485 | V41: 9.2 | W41: 38 | X41: -4.3 | Y41: 7.7 | Z41: 5.7 | AA41: 6.4 | AB41: 52.3 | AE41: 2012-02-03T00:00:00.001 | AF41: =AVERAGE(E28081:E28800) -> 9.14 | AG41: =AVERAGE(F28081:F28800) -> 27.64444444
A42: 120201 | B42: 9 | C42: 3 | D42: 27 | E42: 9.5 | F42: 34 | G42: -5.6 | H42: 485 | I42: 6 | J42: 199 | K42: 9 | L42: 0 | M42: 0 | N42: 0 | O42: 9.5 | P42: 36 | Q42: -4.7 | R42: 9.1 | S42: 34 | T42: -5.9 | U42: 485 | V42: 9.2 | W42: 38 | X42: -4.3 | Y42: 7.7 | Z42: 5.7 | AA42: 6.4 | AB42: 52.3 | AE42: 2012-02-03T01:00:00.001 | AF42: =AVERAGE(E28801:E29520) -> 7.480277778 | AG42: =AVERAGE(F28801:F29520) -> 31.94166667
A43: 120201 | B43: 9 | C43: 3 | D43: 32 | E43: 9.5 | F43: 33 | G43: -5.9 | H43: 485 | I43: 6 | J43: 199 | K43: 9 | L43: 0 | M43: 0 | N43: 0 | O43: 9.5 | P43: 36 | Q43: -4.7 | R43: 9.1 | S43: 34 | T43: -5.9 | U43: 485 | V43: 9.2 | W43: 38 | X43: -4.3 | Y43: 7.7 | Z43: 5.7 | AA43: 6.4 | AB43: 52.3 | AE43: 2012-02-03T02:00:00.001 | AF43: =AVERAGE(E29521:E30240) -> 7.20875 | AG43: =AVERAGE(F29521:F30240) -> 32.24166667
A44: 120201 | B44: 9 | C44: 3 | D44: 37 | E44: 9.5 | F44: 34 | G44: -5.6 | H44: 485 | I44: 6 | J44: 199 | K44: 9 | L44: 0 | M44: 0 | N44: 0 | O44: 9.6 | P44: 36 | Q44: -4.6 | R44: 9.1 | S44: 34 | T44: -5.9 | U44: 485 | V44: 9.2 | W44: 38 | X44: -4.3 | Y44: 7.7 | Z44: 5.7 | AA44: 6.4 | AB44: 52.3 | AE44: 2012-02-03T03:00:00.001 | AF44: =AVERAGE(E30241:E30960) -> 5.890555556 | AG44: =AVERAGE(F30241:F30960) -> 36.23194444
A45: 120201 | B45: 9 | C45: 3 | D45: 42 | E45: 9.5 | F45: 33 | G45: -5.9 | H45: 485 | I45: 6 | J45: 199 | K45: 9 | L45: 0 | M45: 0 | N45: 0 | O45: 9.6 | P45: 37 | Q45: -4.4 | R45: 9.1 | S45: 34 | T45: -5.9 | U45: 485 | V45: 9.2 | W45: 38 | X45: -4.3 | Y45: 7.7 | Z45: 5.7 | AA45: 6.4 | AB45: 52.3 | AE45: 2012-02-03T04:00:00.001 | AF45: =AVERAGE(E30961:E31680) -> 5.008472222 | AG45: =AVERAGE(F30961:F31680) -> 37.92916667
A46: 120201 | B46: 9 | C46: 3 | D46: 47 | E46: 9.5 | F46: 34 | G46: -5.7 | H46: 485 | I46: 6 | J46: 199 | K46: 9 | L46: 0 | M46: 0 | N46: 0 | O46: 9.6 | P46: 37 | Q46: -4.4 | R46: 9.1 | S46: 34 | T46: -5.9 | U46: 485 | V46: 9.2 | W46: 38 | X46: -4.3 | Y46: 7.7 | Z46: 5.7 | AA46: 6.4 | AB46: 52.3 | AE46: 2012-02-03T05:00:00.001 | AF46: =AVERAGE(E31681:E32400) -> 4.363194444 | AG46: =AVERAGE(F31681:F32400) -> 42.22083333
A47: 120201 | B47: 9 | C47: 3 | D47: 53 | E47: 9.5 | F47: 33 | G47: -5.9 | H47: 485 | I47: 6 | J47: 199 | K47: 9 | L47: 0 | M47: 0 | N47: 0 | O47: 9.6 | P47: 37 | Q47: -4.5 | R47: 9.1 | S47: 34 | T47: -5.9 | U47: 485 | V47: 9.2 | W47: 38 | X47: -4.3 | Y47: 7.7 | Z47: 5.7 | AA47: 6.4 | AB47: 52.3 | AE47: 2012-02-03T06:00:00.001 | AF47: =AVERAGE(E32401:E33120) -> 3.046805556 | AG47: =AVERAGE(F32401:F33120) -> 44.16111111
A48: 120201 | B48: 9 | C48: 3 | D48: 57 | E48: 9.5 | F48: 33 | G48: -5.8 | H48: 485 | I48: 6 | J48: 199 | K48: 9 | L48: 0 | M48: 0 | N48: 0 | O48: 9.6 | P48: 38 | Q48: -4.2 | R48: 9.1 | S48: 34 | T48: -5.9 | U48: 485 | V48: 9.2 | W48: 38 | X48: -4.3 | Y48: 7.7 | Z48: 5.7 | AA48: 6.4 | AB48: 52.3 | AE48: 2012-02-03T07:00:00.001 | AF48: =AVERAGE(E33121:E33840) -> 3.341805556 | AG48: =AVERAGE(F33121:F33840) -> 43.20555556
A49: 120201 | B49: 9 | C49: 4 | D49: 2 | E49: 9.5 | F49: 33 | G49: -5.8 | H49: 485 | I49: 6 | J49: 199 | K49: 9 | L49: 0 | M49: 0 | N49: 0 | O49: 9.7 | P49: 38 | Q49: -3.9 | R49: 9.1 | S49: 34 | T49: -5.9 | U49: 485 | V49: 9.2 | W49: 38 | X49: -4.3 | Y49: 7.7 | Z49: 5.7 | AA49: 6.4 | AB49: 52.3 | AE49: 2012-02-03T08:00:00.001 | AF49: =AVERAGE(E33841:E34560) -> 5.023888889 | AG49: =AVERAGE(F33841:F34560) -> 37.32083333
A50: 120201 | B50: 9 | C50: 4 | D50: 7 | E50: 9.5 | F50: 33 | G50: -5.9 | H50: 485 | I50: 6 | J50: 199 | K50: 9 | L50: 0 | M50: 0 | N50: 0 | O50: 9.7 | P50: 37 | Q50: -4.2 | R50: 9.1 | S50: 34 | T50: -5.9 | U50: 485 | V50: 9.2 | W50: 38 | X50: -4.3 | Y50: 7.7 | Z50: 5.7 | AA50: 6.4 | AB50: 52.3 | AE50: 2012-02-03T09:00:00.001 | AF50: =AVERAGE(E34561:E35280) -> 7.895138889 | AG50: =AVERAGE(F34561:F35280) -> 30.55138889
A51: 120201 | B51: 9 | C51: 4 | D51: 12 | E51: 9.6 | F51: 33 | G51: -5.8 | H51: 485 | I51: 6 | J51: 199 | K51: 9 | L51: 0 | M51: 0 | N51: 0 | O51: 9.7 | P51: 37 | Q51: -4.4 | R51: 9.1 | S51: 34 | T51: -5.9 | U51: 485 | V51: 9.2 | W51: 38 | X51: -4.3 | Y51: 7.7 | Z51: 5.7 | AA51: 6.4 | AB51: 52.3 | AE51: 2012-02-03T10:00:00.001 | AF51: =AVERAGE(E35281:E36000) -> 10.30875 | AG51: =AVERAGE(F35281:F36000) -> 26.62777778
A52: 120201 | B52: 9 | C52: 4 | D52: 17 | E52: 9.6 | F52: 33 | G52: -5.8 | H52: 485 | I52: 6 | J52: 199 | K52: 9 | L52: 0 | M52: 0 | N52: 0 | O52: 9.7 | P52: 37 | Q52: -4.4 | R52: 9.1 | S52: 34 | T52: -5.9 | U52: 485 | V52: 9.2 | W52: 38 | X52: -4.3 | Y52: 7.7 | Z52: 5.7 | AA52: 6.4 | AB52: 52.3 | AE52: 2012-02-03T11:00:00.001 | AF52: =AVERAGE(E36001:E36720) -> 12.34930556 | AG52: =AVERAGE(F36001:F36720) -> 23.78194444
A53: 120201 | B53: 9 | C53: 4 | D53: 22 | E53: 9.6 | F53: 33 | G53: -5.9 | H53: 485 | I53: 6 | J53: 199 | K53: 9 | L53: 0 | M53: 0 | N53: 0 | O53: 9.7 | P53: 36 | Q53: -4.5 | R53: 9.1 | S53: 34 | T53: -5.9 | U53: 485 | V53: 9.2 | W53: 38 | X53: -4.3 | Y53: 7.7 | Z53: 5.7 | AA53: 6.4 | AB53: 52.3 | AE53: 2012-02-03T12:00:00.001 | AF53: =AVERAGE(E36721:E37440) -> 13.93041667 | AG53: =AVERAGE(F36721:F37440) -> 22.48472222
A54: 120201 | B54: 9 | C54: 4 | D54: 27 | E54: 9.6 | F54: 33 | G54: -6 | H54: 485 | I54: 6 | J54: 199 | K54: 9 | L54: 0 | M54: 0 | N54: 0 | O54: 9.7 | P54: 36 | Q54: -4.6 | R54: 9.1 | S54: 34 | T54: -5.9 | U54: 485 | V54: 9.2 | W54: 38 | X54: -4.3 | Y54: 7.7 | Z54: 5.7 | AA54: 6.4 | AB54: 52.3 | AE54: 2012-02-03T13:00:00.001 | AF54: =AVERAGE(E37441:E38160) -> 15.00916667 | AG54: =AVERAGE(F37441:F38160) -> 18.73472222
A55: 120201 | B55: 9 | C55: 4 | D55: 32 | E55: 9.6 | F55: 33 | G55: -5.8 | H55: 485 | I55: 6 | J55: 199 | K55: 9 | L55: 0 | M55: 0 | N55: 0 | O55: 9.8 | P55: 36 | Q55: -4.6 | R55: 9.1 | S55: 34 | T55: -5.9 | U55: 485 | V55: 9.2 | W55: 38 | X55: -4.3 | Y55: 7.7 | Z55: 5.7 | AA55: 6.4 | AB55: 52.3 | AE55: 2012-02-03T14:00:00.002 | AF55: =AVERAGE(E38161:E38880) -> 15.56763889 | AG55: =AVERAGE(F38161:F38880) -> 16.73472222
A56: 120201 | B56: 9 | C56: 4 | D56: 37 | E56: 9.6 | F56: 33 | G56: -5.9 | H56: 485 | I56: 6 | J56: 202 | K56: 9 | L56: 0 | M56: 0 | N56: 0 | O56: 9.8 | P56: 36 | Q56: -4.6 | R56: 9.1 | S56: 34 | T56: -5.9 | U56: 485 | V56: 9.2 | W56: 38 | X56: -4.3 | Y56: 7.7 | Z56: 5.7 | AA56: 6.4 | AB56: 52.3 | AE56: 2012-02-03T15:00:00.002 | AF56: =AVERAGE(E38881:E39600) -> 15.72805556 | AG56: =AVERAGE(F38881:F39600) -> 16.725
A57: 120201 | B57: 9 | C57: 4 | D57: 43 | E57: 9.6 | F57: 33 | G57: -5.9 | H57: 485 | I57: 6 | J57: 202 | K57: 9 | L57: 0 | M57: 0 | N57: 0 | O57: 9.8 | P57: 36 | Q57: -4.4 | R57: 9.1 | S57: 34 | T57: -5.9 | U57: 485 | V57: 9.2 | W57: 38 | X57: -4.3 | Y57: 7.7 | Z57: 5.7 | AA57: 6.4 | AB57: 52.3 | AE57: 2012-02-03T16:00:00.002 | AF57: =AVERAGE(E39601:E40320) -> 15.37375 | AG57: =AVERAGE(F39601:F40320) -> 18.84583333
A58: 120201 | B58: 9 | C58: 4 | D58: 47 | E58: 9.6 | F58: 33 | G58: -5.7 | H58: 485 | I58: 6 | J58: 202 | K58: 9 | L58: 0 | M58: 0 | N58: 0 | O58: 9.8 | P58: 37 | Q58: -4.2 | R58: 9.1 | S58: 34 | T58: -5.9 | U58: 485 | V58: 9.2 | W58: 38 | X58: -4.3 | Y58: 7.7 | Z58: 5.7 | AA58: 6.4 | AB58: 52.3 | AE58: 2012-02-03T17:00:00.002 | AF58: =AVERAGE(E40321:E41040) -> 14.83527778 | AG58: =AVERAGE(F40321:F41040) -> 21.3625
A59: 120201 | B59: 9 | C59: 4 | D59: 52 | E59: 9.6 | F59: 33 | G59: -5.8 | H59: 485 | I59: 6 | J59: 202 | K59: 9 | L59: 0 | M59: 0 | N59: 0 | O59: 9.8 | P59: 37 | Q59: -4.3 | R59: 9.1 | S59: 34 | T59: -5.9 | U59: 485 | V59: 9.2 | W59: 38 | X59: -4.3 | Y59: 7.7 | Z59: 5.7 | AA59: 6.4 | AB59: 52.3 | AE59: 2012-02-03T18:00:00.002 | AF59: =AVERAGE(E41041:E41760) -> 13.69625 | AG59: =AVERAGE(F41041:F41760) -> 24.70416667
A60: 120201 | B60: 9 | C60: 4 | D60: 57 | E60: 9.7 | F60: 33 | G60: -5.6 | H60: 485 | I60: 6 | J60: 202 | K60: 9 | L60: 0 | M60: 0 | N60: 0 | O60: 9.8 | P60: 36 | Q60: -4.4 | R60: 9.1 | S60: 34 | T60: -5.9 | U60: 485 | V60: 9.2 | W60: 38 | X60: -4.3 | Y60: 7.7 | Z60: 5.7 | AA60: 6.4 | AB60: 52.3 | AE60: 2012-02-03T19:00:00.002 | AF60: =AVERAGE(E41761:E42480) -> 12.21041667 | AG60: =AVERAGE(F41761:F42480) -> 30.95694444
A61: 120201 | B61: 9 | C61: 5 | D61: 2 | E61: 9.7 | F61: 33 | G61: -5.7 | H61: 485 | I61: 6 | J61: 202 | K61: 9 | L61: 0 | M61: 0 | N61: 0 | O61: 9.8 | P61: 36 | Q61: -4.5 | R61: 9.1 | S61: 34 | T61: -5.9 | U61: 485 | V61: 9.2 | W61: 38 | X61: -4.3 | Y61: 7.7 | Z61: 5.7 | AA61: 6.4 | AB61: 52.3 | AE61: 2012-02-03T20:00:00.002 | AF61: =AVERAGE(E42481:E43200) -> 11.35666667 | AG61: =AVERAGE(F42481:F43200) -> 33.14861111
A62: 120201 | B62: 9 | C62: 5 | D62: 7 | E62: 9.7 | F62: 33 | G62: -5.6 | H62: 485 | I62: 6 | J62: 202 | K62: 9 | L62: 0 | M62: 0 | N62: 0 | O62: 9.8 | P62: 36 | Q62: -4.4 | R62: 9.1 | S62: 34 | T62: -5.9 | U62: 485 | V62: 9.2 | W62: 38 | X62: -4.3 | Y62: 7.7 | Z62: 5.7 | AA62: 6.4 | AB62: 52.3 | AE62: 2012-02-03T21:00:00.002 | AF62: =AVERAGE(E43201:E43920) -> 10.62847222 | AG62: =AVERAGE(F43201:F43920) -> 35.86805556
A63: 120201 | B63: 9 | C63: 5 | D63: 12 | E63: 9.7 | F63: 33 | G63: -5.7 | H63: 485 | I63: 6 | J63: 202 | K63: 9 | L63: 0 | M63: 0 | N63: 0 | O63: 9.8 | P63: 36 | Q63: -4.5 | R63: 9.1 | S63: 34 | T63: -5.9 | U63: 485 | V63: 9.2 | W63: 38 | X63: -4.3 | Y63: 7.7 | Z63: 5.7 | AA63: 6.4 | AB63: 52.3 | AE63: 2012-02-03T22:00:00.002 | AF63: =AVERAGE(E43921:E44640) -> 9.321666667 | AG63: =AVERAGE(F43921:F44640) -> 39.92777778
A64: 120201 | B64: 9 | C64: 5 | D64: 17 | E64: 9.7 | F64: 33 | G64: -5.7 | H64: 485 | I64: 6 | J64: 202 | K64: 9 | L64: 0 | M64: 0 | N64: 0 | O64: 9.8 | P64: 36 | Q64: -4.5 | R64: 9.1 | S64: 34 | T64: -5.9 | U64: 485 | V64: 9.2 | W64: 38 | X64: -4.3 | Y64: 7.7 | Z64: 5.7 | AA64: 6.4 | AB64: 52.3 | AE64: 2012-02-03T23:00:00.002 | AF64: =AVERAGE(E44641:E45360) -> 8.700416667 | AG64: =AVERAGE(F44641:F45360) -> 39.24305556
A65: 120201 | B65: 9 | C65: 5 | D65: 22 | E65: 9.9 | F65: 33 | G65: -5.5 | H65: 485 | I65: 6 | J65: 202 | K65: 9 | L65: 0 | M65: 0 | N65: 0 | O65: 9.8 | P65: 36 | Q65: -4.5 | R65: 9.1 | S65: 34 | T65: -5.9 | U65: 485 | V65: 9.2 | W65: 38 | X65: -4.3 | Y65: 7.7 | Z65: 5.7 | AA65: 7.7 | AB65: 52.3 | AE65: 2012-02-04T00:00:00.002 | AF65: =AVERAGE(E45361:E46080) -> 8.466666667 | AG65: =AVERAGE(F45361:F46080) -> 39.19444444
A66: 120201 | B66: 9 | C66: 5 | D66: 27 | E66: 9.7 | F66: 33 | G66: -5.7 | H66: 485 | I66: 6 | J66: 202 | K66: 9 | L66: 0 | M66: 0 | N66: 0 | O66: 9.8 | P66: 36 | Q66: -4.6 | R66: 9.1 | S66: 34 | T66: -5.9 | U66: 485 | V66: 9.2 | W66: 38 | X66: -4.3 | Y66: 7.7 | Z66: 5.7 | AA66: 6.4 | AB66: 52.3 | AE66: 2012-02-04T01:00:00.002 | AF66: =AVERAGE(E46081:E46800) -> 7.070416667 | AG66: =AVERAGE(F46081:F46800) -> 42.83194444
A67: 120201 | B67: 9 | C67: 5 | D67: 33 | E67: 9.7 | F67: 33 | G67: -5.8 | H67: 485 | I67: 6 | J67: 202 | K67: 9 | L67: 0 | M67: 0 | N67: 0 | O67: 9.8 | P67: 36 | Q67: -4.5 | R67: 9.1 | S67: 34 | T67: -5.9 | U67: 485 | V67: 9.2 | W67: 38 | X67: -4.3 | Y67: 7.7 | Z67: 5.7 | AA67: 6.4 | AB67: 52.3 | AE67: 2012-02-04T02:00:00.002 | AF67: =AVERAGE(E46801:E47520) -> 5.371944444 | AG67: =AVERAGE(F46801:F47520) -> 47.96111111
A68: 120201 | B68: 9 | C68: 5 | D68: 37 | E68: 9.7 | F68: 33 | G68: -5.8 | H68: 485 | I68: 6 | J68: 202 | K68: 9 | L68: 0 | M68: 0 | N68: 0 | O68: 9.8 | P68: 36 | Q68: -4.4 | R68: 9.1 | S68: 34 | T68: -5.9 | U68: 485 | V68: 9.2 | W68: 38 | X68: -4.3 | Y68: 7.7 | Z68: 5.7 | AA68: 6.4 | AB68: 52.3 | AE68: 2012-02-04T03:00:00.002 | AF68: =AVERAGE(E47521:E48240) -> 4.60375 | AG68: =AVERAGE(F47521:F48240) -> 48.01111111
A69: 120201 | B69: 9 | C69: 5 | D69: 43 | E69: 9.7 | F69: 33 | G69: -5.9 | H69: 485 | I69: 6 | J69: 202 | K69: 9 | L69: 0 | M69: 0 | N69: 0 | O69: 9.8 | P69: 36 | Q69: -4.5 | R69: 9.1 | S69: 34 | T69: -5.9 | U69: 485 | V69: 9.2 | W69: 38 | X69: -4.3 | Y69: 7.7 | Z69: 5.7 | AA69: 7.7 | AB69: 52.3 | AE69: 2012-02-04T04:00:00.002 | AF69: =AVERAGE(E48241:E48960) -> 4.093472222 | AG69: =AVERAGE(F48241:F48960) -> 49.76388889
A70: 120201 | B70: 9 | C70: 5 | D70: 47 | E70: 9.7 | F70: 33 | G70: -5.8 | H70: 485 | I70: 6 | J70: 202 | K70: 9 | L70: 0 | M70: 0 | N70: 0 | O70: 9.8 | P70: 36 | Q70: -4.5 | R70: 9.1 | S70: 34 | T70: -5.9 | U70: 485 | V70: 9.2 | W70: 38 | X70: -4.3 | Y70: 7.7 | Z70: 5.7 | AA70: 6.4 | AB70: 52.3 | AE70: 2012-02-04T05:00:00.002 | AF70: =AVERAGE(E48961:E49680) -> 3.933611111 | AG70: =AVERAGE(F48961:F49680) -> 49.55
A71: 120201 | B71: 9 | C71: 5 | D71: 52 | E71: 9.7 | F71: 33 | G71: -5.8 | H71: 485 | I71: 6 | J71: 202 | K71: 9 | L71: 0 | M71: 0 | N71: 0 | O71: 9.8 | P71: 36 | Q71: -4.5 | R71: 9.1 | S71: 34 | T71: -5.9 | U71: 485 | V71: 9.2 | W71: 38 | X71: -4.3 | Y71: 7.7 | Z71: 5.7 | AA71: 6.4 | AB71: 52.3 | AE71: 2012-02-04T06:00:00.002 | AF71: =AVERAGE(E49681:E50400) -> 3.424583333 | AG71: =AVERAGE(F49681:F50400) -> 52.95
A72: 120201 | B72: 9 | C72: 5 | D72: 57 | E72: 9.7 | F72: 32 | G72: -6 | H72: 485 | I72: 6 | J72: 202 | K72: 9 | L72: 0 | M72: 0 | N72: 0 | O72: 9.8 | P72: 36 | Q72: -4.6 | R72: 9.1 | S72: 34 | T72: -5.9 | U72: 485 | V72: 9.2 | W72: 38 | X72: -4.3 | Y72: 7.7 | Z72: 5.7 | AA72: 6.4 | AB72: 52.3 | AE72: =AE71+0.041666667 -> 2012-02-04T07:00:00.002 | AF72: =AVERAGE(E50401:E51120) -> 3.313194444 | AG72: =AVERAGE(F50401:F51120) -> 55.20277778
A73: 120201 | B73: 9 | C73: 6 | D73: 2 | E73: 9.7 | F73: 32 | G73: -6 | H73: 485 | I73: 6 | J73: 202 | K73: 9 | L73: 0 | M73: 0 | N73: 0 | O73: 9.8 | P73: 36 | Q73: -4.4 | R73: 9.1 | S73: 34 | T73: -5.9 | U73: 485 | V73: 9.2 | W73: 38 | X73: -4.3 | Y73: 7.7 | Z73: 5.7 | AA73: 6.4 | AB73: 52.3 | AE73: 2012-02-04T08:00:00.002 | AF73: =AVERAGE(E51121:E51840) -> 4.538611111 | AG73: =AVERAGE(F51121:F51840) -> 49.4625
A74: 120201 | B74: 9 | C74: 6 | D74: 7 | E74: 9.7 | F74: 32 | G74: -6 | H74: 485 | I74: 6 | J74: 202 | K74: 9 | L74: 0 | M74: 0 | N74: 0 | O74: 9.8 | P74: 36 | Q74: -4.6 | R74: 9.1 | S74: 34 | T74: -5.9 | U74: 485 | V74: 9.2 | W74: 38 | X74: -4.3 | Y74: 7.7 | Z74: 5.7 | AA74: 6.4 | AB74: 52.3 | AE74: 2012-02-04T09:00:00.002 | AF74: =AVERAGE(E51841:E52560) -> 6.647916667 | AG74: =AVERAGE(F51841:F52560) -> 42.56666667
A75: 120201 | B75: 9 | C75: 6 | D75: 12 | E75: 9.7 | F75: 33 | G75: -5.9 | H75: 485 | I75: 6 | J75: 202 | K75: 9 | L75: 0 | M75: 0 | N75: 0 | O75: 9.8 | P75: 36 | Q75: -4.6 | R75: 9.1 | S75: 34 | T75: -5.9 | U75: 485 | V75: 9.2 | W75: 38 | X75: -4.3 | Y75: 7.7 | Z75: 5.7 | AA75: 6.4 | AB75: 52.3 | AE75: 2012-02-04T10:00:00.002 | AF75: =AVERAGE(E52561:E53280) -> 8.449583333 | AG75: =AVERAGE(F52561:F53280) -> 39.79166667
A76: 120201 | B76: 9 | C76: 6 | D76: 17 | E76: 9.7 | F76: 33 | G76: -5.9 | H76: 485 | I76: 6 | J76: 202 | K76: 9 | L76: 0 | M76: 0 | N76: 0 | O76: 9.8 | P76: 36 | Q76: -4.6 | R76: 9.1 | S76: 34 | T76: -5.9 | U76: 485 | V76: 9.2 | W76: 38 | X76: -4.3 | Y76: 7.7 | Z76: 5.7 | AA76: 6.4 | AB76: 52.3 | AE76: 2012-02-04T11:00:00.002 | AF76: =AVERAGE(E53281:E54000) -> 11.82916667 | AG76: =AVERAGE(F53281:F54000) -> 31.30833333
A77: 120201 | B77: 9 | C77: 6 | D77: 22 | E77: 9.7 | F77: 33 | G77: -5.8 | H77: 485 | I77: 6 | J77: 202 | K77: 9 | L77: 0 | M77: 0 | N77: 0 | O77: 10 | P77: 36 | Q77: -4.5 | R77: 9.1 | S77: 34 | T77: -5.9 | U77: 485 | V77: 9.2 | W77: 38 | X77: -4.3 | Y77: 7.7 | Z77: 5.7 | AA77: 6.4 | AB77: 52.3 | AE77: 2012-02-04T12:00:00.002 | AF77: =AVERAGE(E54001:E54720) -> 13.90416667 | AG77: =AVERAGE(F54001:F54720) -> 25.66666667
A78: 120201 | B78: 9 | C78: 6 | D78: 27 | E78: 9.7 | F78: 33 | G78: -5.8 | H78: 485 | I78: 6 | J78: 202 | K78: 9 | L78: 0 | M78: 0 | N78: 0 | O78: 9.8 | P78: 35 | Q78: -4.7 | R78: 9.1 | S78: 34 | T78: -5.9 | U78: 485 | V78: 9.2 | W78: 38 | X78: -4.3 | Y78: 7.7 | Z78: 5.7 | AA78: 6.4 | AB78: 52.3 | AE78: 2012-02-04T13:00:00.002 | AF78: =AVERAGE(E54721:E55440) -> 15.96027778 | AG78: =AVERAGE(F54721:F55440) -> 20.79583333
A79: 120201 | B79: 9 | C79: 6 | D79: 33 | E79: 9.7 | F79: 33 | G79: -5.8 | H79: 485 | I79: 6 | J79: 202 | K79: 9 | L79: 0 | M79: 0 | N79: 0 | O79: 9.8 | P79: 36 | Q79: -4.5 | R79: 9.1 | S79: 34 | T79: -5.9 | U79: 485 | V79: 9.2 | W79: 38 | X79: -4.3 | Y79: 7.7 | Z79: 5.7 | AA79: 6.4 | AB79: 52.3 | AE79: 2012-02-04T14:00:00.002 | AF79: =AVERAGE(E55441:E56160) -> 17.27541667 | AG79: =AVERAGE(F55441:F56160) -> 16.42777778
A80: 120201 | B80: 9 | C80: 6 | D80: 37 | E80: 9.7 | F80: 33 | G80: -5.8 | H80: 485 | I80: 5 | J80: 199 | K80: 9 | L80: 0 | M80: 0 | N80: 0 | O80: 10 | P80: 35 | Q80: -4.7 | R80: 9.1 | S80: 34 | T80: -5.9 | U80: 485 | V80: 9.2 | W80: 38 | X80: -4.3 | Y80: 7.7 | Z80: 5.7 | AA80: 6.4 | AB80: 52.3 | AE80: 2012-02-04T15:00:00.002 | AF80: =AVERAGE(E56161:E56880) -> 17.69041667 | AG80: =AVERAGE(F56161:F56880) -> 16.82916667
A81: 120201 | B81: 9 | C81: 6 | D81: 42 | E81: 9.7 | F81: 33 | G81: -5.8 | H81: 485 | I81: 5 | J81: 199 | K81: 9 | L81: 0 | M81: 0 | N81: 0 | O81: 9.8 | P81: 35 | Q81: -4.8 | R81: 9.1 | S81: 34 | T81: -5.9 | U81: 485 | V81: 9.2 | W81: 38 | X81: -4.3 | Y81: 7.7 | Z81: 5.7 | AA81: 6.4 | AB81: 52.3 | AE81: 2012-02-04T16:00:00.002 | AF81: =AVERAGE(E56881:E57600) -> 17.01819444 | AG81: =AVERAGE(F56881:F57600) -> 20.51388889
A82: 120201 | B82: 9 | C82: 6 | D82: 47 | E82: 9.7 | F82: 33 | G82: -5.8 | H82: 485 | I82: 5 | J82: 199 | K82: 9 | L82: 0 | M82: 0 | N82: 0 | O82: 10 | P82: 35 | Q82: -4.6 | R82: 9.1 | S82: 34 | T82: -5.9 | U82: 485 | V82: 9.2 | W82: 38 | X82: -4.3 | Y82: 7.7 | Z82: 5.7 | AA82: 6.4 | AB82: 52.3 | AE82: 2012-02-04T17:00:00.002 | AF82: =AVERAGE(E57601:E58320) -> 15.96944444 | AG82: =AVERAGE(F57601:F58320) -> 22.20138889
A83: 120201 | B83: 9 | C83: 6 | D83: 52 | E83: 9.7 | F83: 33 | G83: -5.8 | H83: 485 | I83: 5 | J83: 199 | K83: 9 | L83: 0 | M83: 0 | N83: 0 | O83: 10 | P83: 36 | Q83: -4.6 | R83: 9.1 | S83: 34 | T83: -5.9 | U83: 485 | V83: 9.2 | W83: 38 | X83: -4.3 | Y83: 7.7 | Z83: 5.7 | AA83: 6.4 | AB83: 52.3 | AE83: 2012-02-04T18:00:00.002 | AF83: =AVERAGE(E58321:E59040) -> 14.715 | AG83: =AVERAGE(F58321:F59040) -> 23.75555556
A84: 120201 | B84: 9 | C84: 6 | D84: 57 | E84: 9.7 | F84: 33 | G84: -5.8 | H84: 485 | I84: 5 | J84: 199 | K84: 9 | L84: 0 | M84: 0 | N84: 0 | O84: 10 | P84: 36 | Q84: -4.6 | R84: 9.1 | S84: 34 | T84: -5.9 | U84: 485 | V84: 9.2 | W84: 38 | X84: -4.3 | Y84: 7.7 | Z84: 5.7 | AA84: 6.4 | AB84: 52.3 | AE84: 2012-02-04T19:00:00.002 | AF84: =AVERAGE(E59041:E59760) -> 13.39055556 | AG84: =AVERAGE(F59041:F59760) -> 26.37083333
A85: 120201 | B85: 9 | C85: 7 | D85: 2 | E85: 9.9 | F85: 33 | G85: -5.7 | H85: 485 | I85: 5 | J85: 199 | K85: 9 | L85: 0 | M85: 0 | N85: 0 | O85: 10 | P85: 35 | Q85: -4.7 | R85: 9.1 | S85: 34 | T85: -5.9 | U85: 485 | V85: 9.2 | W85: 38 | X85: -4.3 | Y85: 7.7 | Z85: 5.7 | AA85: 6.4 | AB85: 52.3 | AE85: 2012-02-04T20:00:00.002 | AF85: =AVERAGE(E59761:E60480) -> 12.55611111 | AG85: =AVERAGE(F59761:F60480) -> 27.84583333
A86: 120201 | B86: 9 | C86: 7 | D86: 7 | E86: 9.9 | F86: 33 | G86: -5.7 | H86: 485 | I86: 5 | J86: 199 | K86: 9 | L86: 0 | M86: 0 | N86: 0 | O86: 10 | P86: 36 | Q86: -4.5 | R86: 9.1 | S86: 34 | T86: -5.9 | U86: 485 | V86: 9.2 | W86: 38 | X86: -4.3 | Y86: 7.7 | Z86: 5.7 | AA86: 6.4 | AB86: 52.3 | AE86: 2012-02-04T21:00:00.002 | AF86: =AVERAGE(E60481:E61200) -> 12.22458333 | AG86: =AVERAGE(F60481:F61200) -> 29.125
A87: 120201 | B87: 9 | C87: 7 | D87: 12 | E87: 9.9 | F87: 33 | G87: -5.7 | H87: 485 | I87: 5 | J87: 199 | K87: 9 | L87: 0 | M87: 0 | N87: 0 | O87: 10 | P87: 36 | Q87: -4.3 | R87: 9.1 | S87: 34 | T87: -5.9 | U87: 485 | V87: 9.2 | W87: 38 | X87: -4.3 | Y87: 7.7 | Z87: 5.7 | AA87: 6.4 | AB87: 52.3 | AE87: =AE86+0.041666667 -> 2012-02-04T22:00:00.002 | AF87: =AVERAGE(E61201:E61920) -> 10.60194444 | AG87: =AVERAGE(F61201:F61920) -> 32.75138889
A88: 120201 | B88: 9 | C88: 7 | D88: 17 | E88: 9.9 | F88: 32 | G88: -5.8 | H88: 485 | I88: 5 | J88: 199 | K88: 9 | L88: 0 | M88: 0 | N88: 0 | O88: 10.1 | P88: 38 | Q88: -3.5 | R88: 9.1 | S88: 34 | T88: -5.9 | U88: 485 | V88: 9.2 | W88: 38 | X88: -4.3 | Y88: 7.7 | Z88: 5.7 | AA88: 7.7 | AB88: 52.3 | AE88: 2012-02-04T23:00:00.002 | AF88: =AVERAGE(E61921:E62640) -> 9.522361111 | AG88: =AVERAGE(F61921:F62640) -> 36.48194444
A89: 120201 | B89: 9 | C89: 7 | D89: 23 | E89: 9.9 | F89: 32 | G89: -5.8 | H89: 485 | I89: 5 | J89: 199 | K89: 9 | L89: 0 | M89: 0 | N89: 0 | O89: 10.1 | P89: 39 | Q89: -3.3 | R89: 9.1 | S89: 34 | T89: -5.9 | U89: 485 | V89: 9.2 | W89: 38 | X89: -4.3 | Y89: 7.7 | Z89: 5.7 | AA89: 7.7 | AB89: 52.3 | AE89: 2012-02-05T00:00:00.002 | AF89: =AVERAGE(E62641:E63360) -> 7.461388889 | AG89: =AVERAGE(F62641:F63360) -> 41.94305556
A90: 120201 | B90: 9 | C90: 7 | D90: 27 | E90: 9.9 | F90: 32 | G90: -5.8 | H90: 485 | I90: 5 | J90: 199 | K90: 9 | L90: 0 | M90: 0 | N90: 0 | O90: 10.2 | P90: 39 | Q90: -3.2 | R90: 9.1 | S90: 34 | T90: -5.9 | U90: 485 | V90: 9.2 | W90: 38 | X90: -4.3 | Y90: 7.7 | Z90: 5.7 | AA90: 6.4 | AB90: 52.3 | AE90: =AE89+0.041666667 -> 2012-02-05T01:00:00.003 | AF90: =AVERAGE(E63361:E64080) -> 7.037638889 | AG90: =AVERAGE(F63361:F64080) -> 43.43611111
A91: 120201 | B91: 9 | C91: 7 | D91: 32 | E91: 9.9 | F91: 32 | G91: -5.9 | H91: 485 | I91: 5 | J91: 199 | K91: 9 | L91: 0 | M91: 0 | N91: 0 | O91: 10.2 | P91: 37 | Q91: -3.7 | R91: 9.1 | S91: 34 | T91: -5.9 | U91: 485 | V91: 9.2 | W91: 38 | X91: -4.3 | Y91: 7.7 | Z91: 5.7 | AA91: 7.7 | AB91: 52.3 | AE91: 2012-02-05T02:00:00.003 | AF91: =AVERAGE(E64081:E64800) -> 5.517083333 | AG91: =AVERAGE(F64081:F64800) -> 46.20833333
A92: 120201 | B92: 9 | C92: 7 | D92: 37 | E92: 9.9 | F92: 32 | G92: -5.8 | H92: 485 | I92: 5 | J92: 199 | K92: 9 | L92: 0 | M92: 0 | N92: 0 | O92: 10.2 | P92: 37 | Q92: -3.8 | R92: 9.6 | S92: 33 | T92: -5.8 | U92: 485 | V92: 9.8 | W92: 36 | X92: -4.4 | Y92: 7.7 | Z92: 5.7 | AA92: 6.4 | AB92: 52.3 | AE92: 2012-02-05T03:00:00.003 | AF92: =AVERAGE(E64801:E65520) -> 5.433472222 | AG92: =AVERAGE(F64801:F65520) -> 45.57777778
A93: 120201 | B93: 9 | C93: 7 | D93: 42 | E93: 9.7 | F93: 32 | G93: -6 | H93: 485 | I93: 5 | J93: 199 | K93: 9 | L93: 0 | M93: 0 | N93: 0 | O93: 10.4 | P93: 37 | Q93: -3.8 | R93: 9.6 | S93: 33 | T93: -5.8 | U93: 485 | V93: 9.8 | W93: 36 | X93: -4.4 | Y93: 7.7 | Z93: 5.7 | AA93: 6.4 | AB93: 52.3 | AE93: 2012-02-05T04:00:00.003 | AF93: =AVERAGE(E65521:E66240) -> 5.342083333 | AG93: =AVERAGE(F65521:F66240) -> 46.29861111
A94: 120201 | B94: 9 | C94: 7 | D94: 47 | E94: 9.7 | F94: 32 | G94: -6 | H94: 485 | I94: 5 | J94: 199 | K94: 9 | L94: 0 | M94: 0 | N94: 0 | O94: 10.2 | P94: 36 | Q94: -4.2 | R94: 9.6 | S94: 33 | T94: -5.8 | U94: 485 | V94: 9.8 | W94: 36 | X94: -4.4 | Y94: 7.7 | Z94: 5.7 | AA94: 6.4 | AB94: 52.3 | AE94: 2012-02-05T05:00:00.003 | AF94: =AVERAGE(E66241:E66960) -> 4.964166667 | AG94: =AVERAGE(F66241:F66960) -> 50.18055556
A95: 120201 | B95: 9 | C95: 7 | D95: 52 | E95: 9.9 | F95: 33 | G95: -5.8 | H95: 485 | I95: 5 | J95: 199 | K95: 9 | L95: 0 | M95: 0 | N95: 0 | O95: 10.4 | P95: 38 | Q95: -3.4 | R95: 9.6 | S95: 33 | T95: -5.8 | U95: 485 | V95: 9.8 | W95: 36 | X95: -4.4 | Y95: 7.7 | Z95: 5.7 | AA95: 6.4 | AB95: 52.3 | AE95: 2012-02-05T06:00:00.003 | AF95: =AVERAGE(E66961:E67680) -> 3.947222222 | AG95: =AVERAGE(F66961:F67680) -> 50.94444444
A96: 120201 | B96: 9 | C96: 7 | D96: 57 | E96: 9.9 | F96: 32 | G96: -5.8 | H96: 485 | I96: 5 | J96: 199 | K96: 9 | L96: 0 | M96: 0 | N96: 0 | O96: 10.4 | P96: 37 | Q96: -3.8 | R96: 9.6 | S96: 33 | T96: -5.8 | U96: 485 | V96: 9.8 | W96: 36 | X96: -4.4 | Y96: 7.7 | Z96: 5.7 | AA96: 6.4 | AB96: 52.3 | AE96: 2012-02-05T07:00:00.003 | AF96: =AVERAGE(E67681:E68400) -> 4.003611111 | AG96: =AVERAGE(F67681:F68400) -> 51.60416667
A97: 120201 | B97: 9 | C97: 8 | D97: 2 | E97: 9.9 | F97: 32 | G97: -5.8 | H97: 485 | I97: 5 | J97: 199 | K97: 9 | L97: 0 | M97: 0 | N97: 0 | O97: 10.4 | P97: 35 | Q97: -4.3 | R97: 9.6 | S97: 33 | T97: -5.8 | U97: 485 | V97: 9.8 | W97: 36 | X97: -4.4 | Y97: 7.7 | Z97: 5.7 | AA97: 7.7 | AB97: 52.3 | AE97: 2012-02-05T08:00:00.003 | AF97: =AVERAGE(E68401:E69120) -> 5.44 | AG97: =AVERAGE(F68401:F69120) -> 50.1125
A98: 120201 | B98: 9 | C98: 8 | D98: 7 | E98: 9.9 | F98: 33 | G98: -5.8 | H98: 485 | I98: 5 | J98: 199 | K98: 9 | L98: 0 | M98: 0 | N98: 0 | O98: 10.4 | P98: 36 | Q98: -4.2 | R98: 9.6 | S98: 33 | T98: -5.8 | U98: 485 | V98: 9.8 | W98: 36 | X98: -4.4 | Y98: 7.7 | Z98: 5.7 | AA98: 6.4 | AB98: 52.3 | AE98: 2012-02-05T09:00:00.003 | AF98: =AVERAGE(E69121:E69840) -> 8.035277778 | AG98: =AVERAGE(F69121:F69840) -> 46.03888889
A99: 120201 | B99: 9 | C99: 8 | D99: 13 | E99: 9.9 | F99: 33 | G99: -5.8 | H99: 485 | I99: 5 | J99: 199 | K99: 9 | L99: 0 | M99: 0 | N99: 0 | O99: 10.4 | P99: 35 | Q99: -4.4 | R99: 9.6 | S99: 33 | T99: -5.8 | U99: 485 | V99: 9.8 | W99: 36 | X99: -4.4 | Y99: 7.7 | Z99: 5.7 | AA99: 6.4 | AB99: 52.3 | AE99: 2012-02-05T10:00:00.003 | AF99: =AVERAGE(E69841:E70560) -> 10.98222222 | AG99: =AVERAGE(F69841:F70560) -> 39.32638889
A100: 120201 | B100: 9 | C100: 8 | D100: 17 | E100: 9.9 | F100: 32 | G100: -5.8 | H100: 485 | I100: 5 | J100: 199 | K100: 9 | L100: 0 | M100: 0 | N100: 0 | O100: 10.4 | P100: 35 | Q100: -4.6 | R100: 9.6 | S100: 33 | T100: -5.8 | U100: 485 | V100: 9.8 | W100: 36 | X100: -4.4 | Y100: 7.7 | Z100: 5.7 | AA100: 7.7 | AB100: 52.3 | AE100: 2012-02-05T11:00:00.003 | AF100: =AVERAGE(E70561:E71280) -> 15.49666667 | AG100: =AVERAGE(F70561:F71280) -> 26.55416667
A101: 120201 | B101: 9 | C101: 8 | D101: 22 | E101: 9.9 | F101: 32 | G101: -6 | H101: 485 | I101: 5 | J101: 199 | K101: 9 | L101: 0 | M101: 0 | N101: 0 | O101: 10.4 | P101: 35 | Q101: -4.4 | R101: 9.6 | S101: 33 | T101: -5.8 | U101: 485 | V101: 9.8 | W101: 36 | X101: -4.4 | Y101: 7.7 | Z101: 5.7 | AA101: 6.4 | AB101: 52.3 | AE101: 2012-02-05T12:00:00.003 | AF101: =AVERAGE(E71281:E72000) -> 17.61055556 | AG101: =AVERAGE(F71281:F72000) -> 22.23333333
A102: 120201 | B102: 9 | C102: 8 | D102: 27 | E102: 9.9 | F102: 32 | G102: -5.8 | H102: 485 | I102: 5 | J102: 199 | K102: 9 | L102: 0 | M102: 0 | N102: 0 | O102: 10.4 | P102: 35 | Q102: -4.6 | R102: 9.6 | S102: 33 | T102: -5.8 | U102: 485 | V102: 9.8 | W102: 36 | X102: -4.4 | Y102: 7.7 | Z102: 5.7 | AA102: 6.4 | AB102: 52.3 | AE102: =AE101+0.041666667 -> 2012-02-05T13:00:00.003 | AF102: =AVERAGE(E72001:E72720) -> 19.11416667 | AG102: =AVERAGE(F72001:F72720) -> 19.07222222
A103: 120201 | B103: 9 | C103: 8 | D103: 32 | E103: 9.9 | F103: 33 | G103: -5.8 | H103: 485 | I103: 5 | J103: 199 | K103: 9 | L103: 0 | M103: 0 | N103: 0 | O103: 10.4 | P103: 36 | Q103: -4 | R103: 9.6 | S103: 33 | T103: -5.8 | U103: 485 | V103: 9.8 | W103: 36 | X103: -4.4 | Y103: 7.7 | Z103: 5.7 | AA103: 6.4 | AB103: 52.3 | AE103: =AE102+0.041666667 -> 2012-02-05T14:00:00.003 | AF103: =AVERAGE(E55441:E56160) -> 17.27541667 | AG103: =AVERAGE(F55441:F56160) -> 16.42777778
A104: 120201 | B104: 9 | C104: 8 | D104: 37 | E104: 9.9 | F104: 32 | G104: -5.9 | H104: 485 | I104: 6 | J104: 200 | K104: 9 | L104: 0 | M104: 0 | N104: 0 | O104: 10.4 | P104: 36 | Q104: -4 | R104: 9.6 | S104: 33 | T104: -5.8 | U104: 485 | V104: 9.8 | W104: 36 | X104: -4.4 | Y104: 7.7 | Z104: 5.7 | AA104: 6.4 | AB104: 52.3 | AE104: 2012-02-05T15:00:00.003 | AF104: =AVERAGE(E73441:E74160) -> 20.61430556 | AG104: =AVERAGE(F73441:F74160) -> 16.3125
A105: 120201 | B105: 9 | C105: 8 | D105: 42 | E105: 9.9 | F105: 32 | G105: -6 | H105: 485 | I105: 6 | J105: 200 | K105: 9 | L105: 0 | M105: 0 | N105: 0 | O105: 10.4 | P105: 35 | Q105: -4.6 | R105: 9.6 | S105: 33 | T105: -5.8 | U105: 485 | V105: 9.8 | W105: 36 | X105: -4.4 | Y105: 7.7 | Z105: 5.7 | AA105: 6.4 | AB105: 52.3 | AE105: 2012-02-05T16:00:00.003 | AF105: =AVERAGE(E74161:E74880) -> 20.42375 | AG105: =AVERAGE(F74161:F74880) -> 17.15416667
A106: 120201 | B106: 9 | C106: 8 | D106: 47 | E106: 9.9 | F106: 32 | G106: -5.9 | H106: 485 | I106: 6 | J106: 200 | K106: 9 | L106: 0 | M106: 0 | N106: 0 | O106: 10.4 | P106: 35 | Q106: -4.3 | R106: 9.6 | S106: 33 | T106: -5.8 | U106: 485 | V106: 9.8 | W106: 36 | X106: -4.4 | Y106: 7.7 | Z106: 5.7 | AA106: 6.4 | AB106: 52.3 | AE106: 2012-02-05T17:00:00.003 | AF106: =AVERAGE(E74881:E75600) -> 18.87083333 | AG106: =AVERAGE(F74881:F75600) -> 20.18611111
A107: 120201 | B107: 9 | C107: 8 | D107: 52 | E107: 9.9 | F107: 32 | G107: -5.9 | H107: 485 | I107: 6 | J107: 200 | K107: 9 | L107: 0 | M107: 0 | N107: 0 | O107: 10.4 | P107: 35 | Q107: -4.6 | R107: 9.6 | S107: 33 | T107: -5.8 | U107: 485 | V107: 9.8 | W107: 36 | X107: -4.4 | Y107: 7.7 | Z107: 5.7 | AA107: 6.4 | AB107: 52.3 | AE107: 2012-02-05T18:00:00.003 | AF107: =AVERAGE(E75601:E76320) -> 17.22069444 | AG107: =AVERAGE(F75601:F76320) -> 23.0125
A108: 120201 | B108: 9 | C108: 8 | D108: 57 | E108: 9.9 | F108: 32 | G108: -5.9 | H108: 485 | I108: 6 | J108: 200 | K108: 9 | L108: 0 | M108: 0 | N108: 0 | O108: 10.4 | P108: 34 | Q108: -4.7 | R108: 9.6 | S108: 33 | T108: -5.8 | U108: 485 | V108: 9.8 | W108: 36 | X108: -4.4 | Y108: 7.7 | Z108: 5.7 | AA108: 7.7 | AB108: 52.3 | AE108: 2012-02-05T19:00:00.003 | AF108: =AVERAGE(E76321:E77040) -> 15.51930556 | AG108: =AVERAGE(F76321:F77040) -> 26.59861111
A109: 120201 | B109: 9 | C109: 9 | D109: 2 | E109: 9.9 | F109: 32 | G109: -6 | H109: 485 | I109: 6 | J109: 200 | K109: 9 | L109: 0 | M109: 0 | N109: 0 | O109: 10.4 | P109: 34 | Q109: -4.7 | R109: 9.6 | S109: 33 | T109: -5.8 | U109: 485 | V109: 9.8 | W109: 36 | X109: -4.4 | Y109: 7.7 | Z109: 5.7 | AA109: 6.4 | AB109: 52.3 | AE109: 2012-02-05T20:00:00.003 | AF109: =AVERAGE(E77041:E77760) -> 14.27972222 | AG109: =AVERAGE(F77041:F77760) -> 28.13888889
A110: 120201 | B110: 9 | C110: 9 | D110: 7 | E110: 9.9 | F110: 32 | G110: -6 | H110: 485 | I110: 6 | J110: 200 | K110: 9 | L110: 0 | M110: 0 | N110: 0 | O110: 10.4 | P110: 36 | Q110: -4.2 | R110: 9.6 | S110: 33 | T110: -5.8 | U110: 485 | V110: 9.8 | W110: 36 | X110: -4.4 | Y110: 7.7 | Z110: 5.7 | AA110: 7.7 | AB110: 52.3 | AE110: 2012-02-05T21:00:00.003 | AF110: =AVERAGE(E77761:E78480) -> 13.65819444 | AG110: =AVERAGE(F77761:F78480) -> 28.90138889
A111: 120201 | B111: 9 | C111: 9 | D111: 13 | E111: 9.9 | F111: 32 | G111: -6 | H111: 485 | I111: 6 | J111: 200 | K111: 9 | L111: 0 | M111: 0 | N111: 0 | O111: 10.4 | P111: 35 | Q111: -4.5 | R111: 9.6 | S111: 33 | T111: -5.8 | U111: 485 | V111: 9.8 | W111: 36 | X111: -4.4 | Y111: 7.7 | Z111: 5.7 | AA111: 7.7 | AB111: 52.3 | AE111: 2012-02-05T22:00:00.003 | AF111: =AVERAGE(E78481:E79200) -> 12.76958333 | AG111: =AVERAGE(F78481:F79200) -> 31.67083333
A112: 120201 | B112: 9 | C112: 9 | D112: 17 | E112: 9.9 | F112: 32 | G112: -6 | H112: 485 | I112: 6 | J112: 200 | K112: 9 | L112: 0 | M112: 0 | N112: 0 | O112: 10.4 | P112: 35 | Q112: -4.6 | R112: 9.6 | S112: 33 | T112: -5.8 | U112: 485 | V112: 9.8 | W112: 36 | X112: -4.4 | Y112: 7.7 | Z112: 5.7 | AA112: 6.4 | AB112: 52.3 | AE112: 2012-02-05T23:00:00.003 | AF112: =AVERAGE(E79201:E79920) -> 11.12833333 | AG112: =AVERAGE(F79201:F79920) -> 36.26527778
A113: 120201 | B113: 9 | C113: 9 | D113: 22 | E113: 9.9 | F113: 32 | G113: -6 | H113: 485 | I113: 6 | J113: 200 | K113: 9 | L113: 0 | M113: 0 | N113: 0 | O113: 10.4 | P113: 35 | Q113: -4.6 | R113: 9.6 | S113: 33 | T113: -5.8 | U113: 485 | V113: 9.8 | W113: 36 | X113: -4.4 | Y113: 7.7 | Z113: 5.7 | AA113: 6.4 | AB113: 52.3
A114: 120201 | B114: 9 | C114: 9 | D114: 27 | E114: 9.9 | F114: 32 | G114: -5.8 | H114: 485 | I114: 6 | J114: 200 | K114: 9 | L114: 0 | M114: 0 | N114: 0 | O114: 10.4 | P114: 34 | Q114: -4.7 | R114: 9.6 | S114: 33 | T114: -5.8 | U114: 485 | V114: 9.8 | W114: 36 | X114: -4.4 | Y114: 7.7 | Z114: 5.7 | AA114: 6.4 | AB114: 52.3
A115: 120201 | B115: 9 | C115: 9 | D115: 32 | E115: 9.9 | F115: 33 | G115: -5.8 | H115: 485 | I115: 6 | J115: 200 | K115: 9 | L115: 0 | M115: 0 | N115: 0 | O115: 10.4 | P115: 35 | Q115: -4.6 | R115: 9.6 | S115: 33 | T115: -5.8 | U115: 485 | V115: 9.8 | W115: 36 | X115: -4.4 | Y115: 7.7 | Z115: 5.7 | AA115: 6.4 | AB115: 52.3
A116: 120201 | B116: 9 | C116: 9 | D116: 37 | E116: 10 | F116: 32 | G116: -5.8 | H116: 485 | I116: 6 | J116: 200 | K116: 9 | L116: 0 | M116: 0 | N116: 0 | O116: 10.4 | P116: 35 | Q116: -4.5 | R116: 9.6 | S116: 33 | T116: -5.8 | U116: 485 | V116: 9.8 | W116: 36 | X116: -4.4 | Y116: 7.7 | Z116: 5.7 | AA116: 6.4 | AB116: 52.3
A117: 120201 | B117: 9 | C117: 9 | D117: 42 | E117: 10 | F117: 32 | G117: -5.9 | H117: 485 | I117: 6 | J117: 200 | K117: 9 | L117: 0 | M117: 0 | N117: 0 | O117: 10.4 | P117: 35 | Q117: -4.5 | R117: 9.6 | S117: 33 | T117: -5.8 | U117: 485 | V117: 9.8 | W117: 36 | X117: -4.4 | Y117: 7.7 | Z117: 5.7 | AA117: 7.7 | AB117: 52.3
A118: 120201 | B118: 9 | C118: 9 | D118: 47 | E118: 10 | F118: 32 | G118: -5.8 | H118: 485 | I118: 6 | J118: 200 | K118: 9 | L118: 0 | M118: 0 | N118: 0 | O118: 10.4 | P118: 35 | Q118: -4.4 | R118: 9.6 | S118: 33 | T118: -5.8 | U118: 485 | V118: 9.8 | W118: 36 | X118: -4.4 | Y118: 7.7 | Z118: 5.7 | AA118: 6.4 | AB118: 52.3
A119: 120201 | B119: 9 | C119: 9 | D119: 52 | E119: 10 | F119: 32 | G119: -5.9 | H119: 485 | I119: 6 | J119: 200 | K119: 9 | L119: 0 | M119: 0 | N119: 0 | O119: 10.4 | P119: 35 | Q119: -4.5 | R119: 9.6 | S119: 33 | T119: -5.8 | U119: 485 | V119: 9.8 | W119: 36 | X119: -4.4 | Y119: 7.7 | Z119: 5.7 | AA119: 6.4 | AB119: 52.3
A120: 120201 | B120: 9 | C120: 9 | D120: 57 | E120: 9.9 | F120: 32 | G120: -6.2 | H120: 485 | I120: 6 | J120: 200 | K120: 9 | L120: 0 | M120: 0 | N120: 0 | O120: 10.4 | P120: 35 | Q120: -4.4 | R120: 9.6 | S120: 33 | T120: -5.8 | U120: 485 | V120: 9.8 | W120: 36 | X120: -4.4 | Y120: 7.7 | Z120: 5.7 | AA120: 6.4 | AB120: 52.3
A121: 120201 | B121: 9 | C121: 10 | D121: 3 | E121: 10 | F121: 32 | G121: -5.9 | H121: 485 | I121: 6 | J121: 200 | K121: 9 | L121: 0 | M121: 0 | N121: 0 | O121: 10.4 | P121: 37 | Q121: -3.6 | R121: 9.6 | S121: 33 | T121: -5.8 | U121: 485 | V121: 9.8 | W121: 36 | X121: -4.4 | Y121: 7.7 | Z121: 5.7 | AA121: 6.4 | AB121: 52.3
A122: 120201 | B122: 9 | C122: 10 | D122: 7 | E122: 10 | F122: 32 | G122: -5.8 | H122: 485 | I122: 6 | J122: 200 | K122: 9 | L122: 0 | M122: 0 | N122: 0 | O122: 10.5 | P122: 38 | Q122: -3.4 | R122: 9.6 | S122: 33 | T122: -5.8 | U122: 485 | V122: 9.8 | W122: 36 | X122: -4.4 | Y122: 7.7 | Z122: 5.7 | AA122: 6.4 | AB122: 52.3
A123: 120201 | B123: 9 | C123: 10 | D123: 12 | E123: 10 | F123: 32 | G123: -5.8 | H123: 485 | I123: 6 | J123: 200 | K123: 9 | L123: 0 | M123: 0 | N123: 0 | O123: 10.5 | P123: 38 | Q123: -3.1 | R123: 9.6 | S123: 33 | T123: -5.8 | U123: 485 | V123: 9.8 | W123: 36 | X123: -4.4 | Y123: 7.7 | Z123: 5.7 | AA123: 6.4 | AB123: 52.3
A124: 120201 | B124: 9 | C124: 10 | D124: 17 | E124: 10 | F124: 32 | G124: -5.9 | H124: 485 | I124: 6 | J124: 200 | K124: 9 | L124: 0 | M124: 0 | N124: 0 | O124: 10.5 | P124: 37 | Q124: -3.5 | R124: 9.6 | S124: 33 | T124: -5.8 | U124: 485 | V124: 9.8 | W124: 36 | X124: -4.4 | Y124: 7.7 | Z124: 5.7 | AA124: 7.7 | AB124: 52.3
A125: 120201 | B125: 9 | C125: 10 | D125: 22 | E125: 10.1 | F125: 32 | G125: -5.8 | H125: 485 | I125: 6 | J125: 200 | K125: 9 | L125: 0 | M125: 0 | N125: 0 | O125: 10.6 | P125: 36 | Q125: -3.9 | R125: 9.6 | S125: 33 | T125: -5.8 | U125: 485 | V125: 9.8 | W125: 36 | X125: -4.4 | Y125: 7.7 | Z125: 5.7 | AA125: 7.7 | AB125: 52.3
A126: 120201 | B126: 9 | C126: 10 | D126: 27 | E126: 10.1 | F126: 33 | G126: -5.6 | H126: 485 | I126: 6 | J126: 200 | K126: 9 | L126: 0 | M126: 0 | N126: 0 | O126: 10.5 | P126: 35 | Q126: -4.4 | R126: 9.6 | S126: 33 | T126: -5.8 | U126: 485 | V126: 9.8 | W126: 36 | X126: -4.4 | Y126: 7.7 | Z126: 5.7 | AA126: 6.4 | AB126: 52.3
A127: 120201 | B127: 9 | C127: 10 | D127: 32 | E127: 10.1 | F127: 32 | G127: -5.8 | H127: 485 | I127: 6 | J127: 200 | K127: 9 | L127: 0 | M127: 0 | N127: 0 | O127: 10.6 | P127: 34 | Q127: -4.4 | R127: 9.6 | S127: 33 | T127: -5.8 | U127: 485 | V127: 9.8 | W127: 36 | X127: -4.4 | Y127: 7.7 | Z127: 5.7 | AA127: 7.7 | AB127: 52.3
A128: 120201 | B128: 9 | C128: 10 | D128: 37 | E128: 10.1 | F128: 32 | G128: -5.8 | H128: 485 | I128: 6 | J128: 195 | K128: 9 | L128: 0 | M128: 0 | N128: 0 | O128: 10.6 | P128: 36 | Q128: -3.8 | R128: 9.6 | S128: 33 | T128: -5.8 | U128: 485 | V128: 9.8 | W128: 36 | X128: -4.4 | Y128: 7.7 | Z128: 5.7 | AA128: 6.4 | AB128: 52.3
A129: 120201 | B129: 9 | C129: 10 | D129: 42 | E129: 10.1 | F129: 32 | G129: -5.7 | H129: 485 | I129: 6 | J129: 195 | K129: 9 | L129: 0 | M129: 0 | N129: 0 | O129: 10.6 | P129: 36 | Q129: -3.9 | R129: 9.6 | S129: 33 | T129: -5.8 | U129: 485 | V129: 9.8 | W129: 36 | X129: -4.4 | Y129: 7.7 | Z129: 5.7 | AA129: 7.7 | AB129: 52.3
A130: 120201 | B130: 9 | C130: 10 | D130: 47 | E130: 10.1 | F130: 32 | G130: -5.8 | H130: 485 | I130: 6 | J130: 195 | K130: 9 | L130: 0 | M130: 0 | N130: 0 | O130: 10.6 | P130: 35 | Q130: -4.2 | R130: 9.6 | S130: 33 | T130: -5.8 | U130: 485 | V130: 9.8 | W130: 36 | X130: -4.4 | Y130: 7.7 | Z130: 5.7 | AA130: 6.4 | AB130: 52.3
A131: 120201 | B131: 9 | C131: 10 | D131: 52 | E131: 10.3 | F131: 32 | G131: -5.7 | H131: 485 | I131: 6 | J131: 195 | K131: 9 | L131: 0 | M131: 0 | N131: 0 | O131: 10.6 | P131: 35 | Q131: -4.1 | R131: 9.6 | S131: 33 | T131: -5.8 | U131: 485 | V131: 9.8 | W131: 36 | X131: -4.4 | Y131: 7.7 | Z131: 5.7 | AA131: 6.4 | AB131: 52.3
A132: 120201 | B132: 9 | C132: 10 | D132: 57 | E132: 10.3 | F132: 32 | G132: -5.7 | H132: 485 | I132: 6 | J132: 195 | K132: 9 | L132: 0 | M132: 0 | N132: 0 | O132: 10.6 | P132: 35 | Q132: -4.2 | R132: 9.6 | S132: 33 | T132: -5.8 | U132: 485 | V132: 9.8 | W132: 36 | X132: -4.4 | Y132: 7.7 | Z132: 5.7 | AA132: 6.4 | AB132: 52.3
A133: 120201 | B133: 9 | C133: 11 | D133: 3 | E133: 10.3 | F133: 32 | G133: -5.7 | H133: 485 | I133: 6 | J133: 195 | K133: 9 | L133: 0 | M133: 0 | N133: 0 | O133: 10.6 | P133: 36 | Q133: -3.8 | R133: 9.6 | S133: 33 | T133: -5.8 | U133: 485 | V133: 9.8 | W133: 36 | X133: -4.4 | Y133: 7.7 | Z133: 5.7 | AA133: 6.4 | AB133: 52.3
A134: 120201 | B134: 9 | C134: 11 | D134: 7 | E134: 10.3 | F134: 32 | G134: -5.6 | H134: 485 | I134: 6 | J134: 195 | K134: 9 | L134: 0 | M134: 0 | N134: 0 | O134: 10.7 | P134: 35 | Q134: -4.2 | R134: 9.6 | S134: 33 | T134: -5.8 | U134: 485 | V134: 9.8 | W134: 36 | X134: -4.4 | Y134: 7.7 | Z134: 5.7 | AA134: 6.4 | AB134: 52.3
A135: 120201 | B135: 9 | C135: 11 | D135: 12 | E135: 10.3 | F135: 32 | G135: -5.7 | H135: 485 | I135: 6 | J135: 195 | K135: 9 | L135: 0 | M135: 0 | N135: 0 | O135: 10.7 | P135: 34 | Q135: -4.3 | R135: 9.6 | S135: 33 | T135: -5.8 | U135: 485 | V135: 9.8 | W135: 36 | X135: -4.4 | Y135: 7.7 | Z135: 5.7 | AA135: 7.7 | AB135: 52.3
A136: 120201 | B136: 9 | C136: 11 | D136: 17 | E136: 10.3 | F136: 32 | G136: -5.7 | H136: 485 | I136: 6 | J136: 195 | K136: 9 | L136: 0 | M136: 0 | N136: 0 | O136: 10.7 | P136: 34 | Q136: -4.5 | R136: 9.6 | S136: 33 | T136: -5.8 | U136: 485 | V136: 9.8 | W136: 36 | X136: -4.4 | Y136: 7.7 | Z136: 5.7 | AA136: 7.7 | AB136: 52.3
A137: 120201 | B137: 9 | C137: 11 | D137: 22 | E137: 10.3 | F137: 32 | G137: -5.8 | H137: 485 | I137: 6 | J137: 195 | K137: 9 | L137: 0 | M137: 0 | N137: 0 | O137: 10.7 | P137: 34 | Q137: -4.6 | R137: 9.6 | S137: 33 | T137: -5.8 | U137: 485 | V137: 9.8 | W137: 36 | X137: -4.4 | Y137: 7.7 | Z137: 5.7 | AA137: 6.4 | AB137: 52.3
A138: 120201 | B138: 9 | C138: 11 | D138: 27 | E138: 10.3 | F138: 32 | G138: -5.8 | H138: 485 | I138: 6 | J138: 195 | K138: 9 | L138: 0 | M138: 0 | N138: 0 | O138: 10.7 | P138: 34 | Q138: -4.5 | R138: 9.6 | S138: 33 | T138: -5.8 | U138: 485 | V138: 9.8 | W138: 36 | X138: -4.4 | Y138: 7.7 | Z138: 5.7 | AA138: 6.4 | AB138: 52.3
A139: 120201 | B139: 9 | C139: 11 | D139: 32 | E139: 10.3 | F139: 32 | G139: -5.9 | H139: 485 | I139: 6 | J139: 195 | K139: 9 | L139: 0 | M139: 0 | N139: 0 | O139: 10.7 | P139: 36 | Q139: -3.8 | R139: 9.6 | S139: 33 | T139: -5.8 | U139: 485 | V139: 9.8 | W139: 36 | X139: -4.4 | Y139: 7.7 | Z139: 5.7 | AA139: 7.7 | AB139: 52.3
A140: 120201 | B140: 9 | C140: 11 | D140: 37 | E140: 10.3 | F140: 32 | G140: -5.9 | H140: 485 | I140: 6 | J140: 195 | K140: 9 | L140: 0 | M140: 0 | N140: 0 | O140: 10.7 | P140: 35 | Q140: -4.2 | R140: 9.6 | S140: 33 | T140: -5.8 | U140: 485 | V140: 9.8 | W140: 36 | X140: -4.4 | Y140: 7.7 | Z140: 5.7 | AA140: 7.7 | AB140: 52.3
A141: 120201 | B141: 9 | C141: 11 | D141: 43 | E141: 10.3 | F141: 31 | G141: -5.9 | H141: 485 | I141: 6 | J141: 195 | K141: 9 | L141: 0 | M141: 0 | N141: 0 | O141: 10.7 | P141: 34 | Q141: -4.4 | R141: 9.6 | S141: 33 | T141: -5.8 | U141: 485 | V141: 9.8 | W141: 36 | X141: -4.4 | Y141: 7.7 | Z141: 5.7 | AA141: 6.4 | AB141: 52.3
A142: 120201 | B142: 9 | C142: 11 | D142: 47 | E142: 10.3 | F142: 31 | G142: -5.9 | H142: 485 | I142: 6 | J142: 195 | K142: 9 | L142: 0 | M142: 0 | N142: 0 | O142: 10.7 | P142: 34 | Q142: -4.6 | R142: 9.6 | S142: 33 | T142: -5.8 | U142: 485 | V142: 9.8 | W142: 36 | X142: -4.4 | Y142: 7.7 | Z142: 5.7 | AA142: 7.7 | AB142: 52.3
A143: 120201 | B143: 9 | C143: 11 | D143: 52 | E143: 10.4 | F143: 32 | G143: -5.8 | H143: 485 | I143: 6 | J143: 195 | K143: 9 | L143: 0 | M143: 0 | N143: 0 | O143: 10.9 | P143: 34 | Q143: -4.5 | R143: 9.6 | S143: 33 | T143: -5.8 | U143: 485 | V143: 9.8 | W143: 36 | X143: -4.4 | Y143: 7.7 | Z143: 5.7 | AA143: 7.7 | AB143: 52.3
A144: 120201 | B144: 9 | C144: 11 | D144: 57 | E144: 10.4 | F144: 31 | G144: -5.8 | H144: 485 | I144: 6 | J144: 195 | K144: 9 | L144: 0 | M144: 0 | N144: 0 | O144: 10.9 | P144: 34 | Q144: -4.4 | R144: 9.6 | S144: 33 | T144: -5.8 | U144: 485 | V144: 9.8 | W144: 36 | X144: -4.4 | Y144: 7.7 | Z144: 5.7 | AA144: 7.7 | AB144: 52.3
A145: 120201 | B145: 9 | C145: 12 | D145: 2 | E145: 10.4 | F145: 31 | G145: -5.9 | H145: 485 | I145: 6 | J145: 195 | K145: 9 | L145: 0 | M145: 0 | N145: 0 | O145: 10.9 | P145: 34 | Q145: -4.6 | R145: 9.6 | S145: 33 | T145: -5.8 | U145: 485 | V145: 9.8 | W145: 36 | X145: -4.4 | Y145: 7.7 | Z145: 5.7 | AA145: 6.4 | AB145: 52.3
A146: 120201 | B146: 9 | C146: 12 | D146: 7 | E146: 10.4 | F146: 31 | G146: -5.8 | H146: 485 | I146: 6 | J146: 195 | K146: 9 | L146: 0 | M146: 0 | N146: 0 | O146: 10.9 | P146: 34 | Q146: -4.6 | R146: 9.6 | S146: 33 | T146: -5.8 | U146: 485 | V146: 9.8 | W146: 36 | X146: -4.4 | Y146: 7.7 | Z146: 5.7 | AA146: 7.7 | AB146: 52.3
A147: 120201 | B147: 9 | C147: 12 | D147: 12 | E147: 10.4 | F147: 31 | G147: -5.8 | H147: 485 | I147: 6 | J147: 195 | K147: 9 | L147: 0 | M147: 0 | N147: 0 | O147: 10.9 | P147: 34 | Q147: -4.4 | R147: 9.6 | S147: 33 | T147: -5.8 | U147: 485 | V147: 9.8 | W147: 36 | X147: -4.4 | Y147: 7.7 | Z147: 5.7 | AA147: 6.4 | AB147: 52.3
A148: 120201 | B148: 9 | C148: 12 | D148: 17 | E148: 10.4 | F148: 32 | G148: -5.8 | H148: 485 | I148: 6 | J148: 195 | K148: 9 | L148: 0 | M148: 0 | N148: 0 | O148: 10.9 | P148: 34 | Q148: -4.3 | R148: 9.6 | S148: 33 | T148: -5.8 | U148: 485 | V148: 9.8 | W148: 36 | X148: -4.4 | Y148: 7.7 | Z148: 5.7 | AA148: 6.4 | AB148: 52.3
A149: 120201 | B149: 9 | C149: 12 | D149: 22 | E149: 10.5 | F149: 32 | G149: -5.6 | H149: 485 | I149: 6 | J149: 195 | K149: 9 | L149: 0 | M149: 0 | N149: 0 | O149: 10.9 | P149: 35 | Q149: -3.8 | R149: 9.6 | S149: 33 | T149: -5.8 | U149: 485 | V149: 9.8 | W149: 36 | X149: -4.4 | Y149: 7.7 | Z149: 5.7 | AA149: 6.4 | AB149: 52.3
A150: 120201 | B150: 9 | C150: 12 | D150: 27 | E150: 10.5 | F150: 32 | G150: -5.7 | H150: 485 | I150: 6 | J150: 195 | K150: 9 | L150: 0 | M150: 0 | N150: 0 | O150: 11 | P150: 35 | Q150: -3.7 | R150: 9.6 | S150: 33 | T150: -5.8 | U150: 485 | V150: 9.8 | W150: 36 | X150: -4.4 | Y150: 7.7 | Z150: 5.7 | AA150: 6.4 | AB150: 52.3
A151: 120201 | B151: 9 | C151: 12 | D151: 33 | E151: 10.5 | F151: 31 | G151: -5.8 | H151: 485 | I151: 6 | J151: 195 | K151: 9 | L151: 0 | M151: 0 | N151: 0 | O151: 11 | P151: 35 | Q151: -3.8 | R151: 9.6 | S151: 33 | T151: -5.8 | U151: 485 | V151: 9.8 | W151: 36 | X151: -4.4 | Y151: 7.7 | Z151: 5.7 | AA151: 7.7 | AB151: 52.3
A152: 120201 | B152: 9 | C152: 12 | D152: 37 | E152: 10.5 | F152: 31 | G152: -5.8 | H152: 485 | I152: 7 | J152: 184 | K152: 12 | L152: 0 | M152: 0 | N152: 0 | O152: 11 | P152: 34 | Q152: -4.2 | R152: 10.1 | S152: 32 | T152: -5.8 | U152: 485 | V152: 10.5 | W152: 35 | X152: -4.2 | Y152: 7.7 | Z152: 5.7 | AA152: 7.7 | AB152: 52.3
A153: 120201 | B153: 9 | C153: 12 | D153: 42 | E153: 10.5 | F153: 31 | G153: -5.8 | H153: 485 | I153: 7 | J153: 184 | K153: 12 | L153: 0 | M153: 0 | N153: 0 | O153: 11 | P153: 34 | Q153: -4.4 | R153: 10.1 | S153: 32 | T153: -5.8 | U153: 485 | V153: 10.5 | W153: 35 | X153: -4.2 | Y153: 7.7 | Z153: 5.7 | AA153: 6.4 | AB153: 52.3
A154: 120201 | B154: 9 | C154: 12 | D154: 47 | E154: 10.5 | F154: 31 | G154: -5.9 | H154: 485 | I154: 7 | J154: 184 | K154: 12 | L154: 0 | M154: 0 | N154: 0 | O154: 11 | P154: 34 | Q154: -4.4 | R154: 10.1 | S154: 32 | T154: -5.8 | U154: 485 | V154: 10.5 | W154: 35 | X154: -4.2 | Y154: 7.7 | Z154: 5.7 | AA154: 6.4 | AB154: 52.3
A155: 120201 | B155: 9 | C155: 12 | D155: 52 | E155: 10.5 | F155: 31 | G155: -5.9 | H155: 485 | I155: 7 | J155: 184 | K155: 12 | L155: 0 | M155: 0 | N155: 0 | O155: 11 | P155: 34 | Q155: -4.4 | R155: 10.1 | S155: 32 | T155: -5.8 | U155: 485 | V155: 10.5 | W155: 35 | X155: -4.2 | Y155: 7.7 | Z155: 5.7 | AA155: 6.4 | AB155: 52.3
A156: 120201 | B156: 9 | C156: 12 | D156: 57 | E156: 10.5 | F156: 31 | G156: -5.9 | H156: 485 | I156: 7 | J156: 184 | K156: 12 | L156: 0 | M156: 0 | N156: 0 | O156: 11 | P156: 34 | Q156: -4.2 | R156: 10.1 | S156: 32 | T156: -5.8 | U156: 485 | V156: 10.5 | W156: 35 | X156: -4.2 | Y156: 7.7 | Z156: 5.7 | AA156: 6.4 | AB156: 52.3
A157: 120201 | B157: 9 | C157: 13 | D157: 2 | E157: 10.5 | F157: 31 | G157: -5.8 | H157: 485 | I157: 7 | J157: 184 | K157: 12 | L157: 0 | M157: 0 | N157: 0 | O157: 11 | P157: 33 | Q157: -4.5 | R157: 10.1 | S157: 32 | T157: -5.8 | U157: 485 | V157: 10.5 | W157: 35 | X157: -4.2 | Y157: 7.7 | Z157: 5.7 | AA157: 6.4 | AB157: 52.3
A158: 120201 | B158: 9 | C158: 13 | D158: 7 | E158: 10.6 | F158: 31 | G158: -5.8 | H158: 485 | I158: 7 | J158: 184 | K158: 12 | L158: 0 | M158: 0 | N158: 0 | O158: 11 | P158: 34 | Q158: -4.1 | R158: 10.1 | S158: 32 | T158: -5.8 | U158: 485 | V158: 10.5 | W158: 35 | X158: -4.2 | Y158: 7.7 | Z158: 5.7 | AA158: 6.4 | AB158: 52.3
A159: 120201 | B159: 9 | C159: 13 | D159: 12 | E159: 10.6 | F159: 31 | G159: -5.8 | H159: 485 | I159: 7 | J159: 184 | K159: 12 | L159: 0 | M159: 0 | N159: 0 | O159: 11 | P159: 36 | Q159: -3.5 | R159: 10.1 | S159: 32 | T159: -5.8 | U159: 485 | V159: 10.5 | W159: 35 | X159: -4.2 | Y159: 7.7 | Z159: 5.7 | AA159: 6.4 | AB159: 52.3
A160: 120201 | B160: 9 | C160: 13 | D160: 17 | E160: 10.6 | F160: 31 | G160: -5.8 | H160: 485 | I160: 7 | J160: 184 | K160: 12 | L160: 0 | M160: 0 | N160: 0 | O160: 11 | P160: 35 | Q160: -4 | R160: 10.1 | S160: 32 | T160: -5.8 | U160: 485 | V160: 10.5 | W160: 35 | X160: -4.2 | Y160: 7.7 | Z160: 5.7 | AA160: 7.7 | AB160: 52.3
A161: 120201 | B161: 9 | C161: 13 | D161: 23 | E161: 10.6 | F161: 31 | G161: -5.7 | H161: 485 | I161: 7 | J161: 184 | K161: 12 | L161: 0 | M161: 0 | N161: 0 | O161: 11.1 | P161: 36 | Q161: -3.3 | R161: 10.1 | S161: 32 | T161: -5.8 | U161: 485 | V161: 10.5 | W161: 35 | X161: -4.2 | Y161: 7.7 | Z161: 5.7 | AA161: 7.7 | AB161: 52.3
A162: 120201 | B162: 9 | C162: 13 | D162: 27 | E162: 10.6 | F162: 31 | G162: -5.7 | H162: 485 | I162: 7 | J162: 184 | K162: 12 | L162: 0 | M162: 0 | N162: 0 | O162: 11.1 | P162: 36 | Q162: -3.3 | R162: 10.1 | S162: 32 | T162: -5.8 | U162: 485 | V162: 10.5 | W162: 35 | X162: -4.2 | Y162: 7.7 | Z162: 5.7 | AA162: 6.4 | AB162: 52.3
A163: 120201 | B163: 9 | C163: 13 | D163: 32 | E163: 10.6 | F163: 31 | G163: -5.7 | H163: 485 | I163: 7 | J163: 184 | K163: 12 | L163: 0 | M163: 0 | N163: 0 | O163: 11.1 | P163: 37 | Q163: -2.9 | R163: 10.1 | S163: 32 | T163: -5.8 | U163: 485 | V163: 10.5 | W163: 35 | X163: -4.2 | Y163: 7.7 | Z163: 5.7 | AA163: 6.4 | AB163: 52.3
A164: 120201 | B164: 9 | C164: 13 | D164: 37 | E164: 10.6 | F164: 31 | G164: -5.8 | H164: 485 | I164: 7 | J164: 184 | K164: 12 | L164: 0 | M164: 0 | N164: 0 | O164: 11.1 | P164: 36 | Q164: -3.4 | R164: 10.1 | S164: 32 | T164: -5.8 | U164: 485 | V164: 10.5 | W164: 35 | X164: -4.2 | Y164: 7.7 | Z164: 5.7 | AA164: 6.4 | AB164: 52.3
A165: 120201 | B165: 9 | C165: 13 | D165: 42 | E165: 10.6 | F165: 31 | G165: -5.8 | H165: 485 | I165: 7 | J165: 184 | K165: 12 | L165: 0 | M165: 0 | N165: 0 | O165: 11.1 | P165: 34 | Q165: -4.2 | R165: 10.1 | S165: 32 | T165: -5.8 | U165: 485 | V165: 10.5 | W165: 35 | X165: -4.2 | Y165: 7.7 | Z165: 5.7 | AA165: 7.7 | AB165: 52.3
A166: 120201 | B166: 9 | C166: 13 | D166: 47 | E166: 10.6 | F166: 31 | G166: -5.8 | H166: 485 | I166: 7 | J166: 184 | K166: 12 | L166: 0 | M166: 0 | N166: 0 | O166: 11.1 | P166: 33 | Q166: -4.6 | R166: 10.1 | S166: 32 | T166: -5.8 | U166: 485 | V166: 10.5 | W166: 35 | X166: -4.2 | Y166: 7.7 | Z166: 5.7 | AA166: 6.4 | AB166: 52.3
A167: 120201 | B167: 9 | C167: 13 | D167: 52 | E167: 10.8 | F167: 31 | G167: -5.6 | H167: 485 | I167: 7 | J167: 184 | K167: 12 | L167: 0 | M167: 0 | N167: 0 | O167: 11.1 | P167: 32 | Q167: -4.7 | R167: 10.1 | S167: 32 | T167: -5.8 | U167: 485 | V167: 10.5 | W167: 35 | X167: -4.2 | Y167: 7.7 | Z167: 5.7 | AA167: 7.7 | AB167: 52.3
A168: 120201 | B168: 9 | C168: 13 | D168: 57 | E168: 10.8 | F168: 31 | G168: -5.5 | H168: 485 | I168: 7 | J168: 184 | K168: 12 | L168: 0 | M168: 0 | N168: 0 | O168: 11.1 | P168: 32 | Q168: -4.7 | R168: 10.1 | S168: 32 | T168: -5.8 | U168: 485 | V168: 10.5 | W168: 35 | X168: -4.2 | Y168: 7.7 | Z168: 5.7 | AA168: 6.4 | AB168: 52.3
A169: 120201 | B169: 9 | C169: 14 | D169: 2 | E169: 10.8 | F169: 31 | G169: -5.6 | H169: 485 | I169: 7 | J169: 184 | K169: 12 | L169: 0 | M169: 0 | N169: 0 | O169: 11.1 | P169: 33 | Q169: -4.6 | R169: 10.1 | S169: 32 | T169: -5.8 | U169: 485 | V169: 10.5 | W169: 35 | X169: -4.2 | Y169: 7.7 | Z169: 5.7 | AA169: 7.7 | AB169: 52.3
A170: 120201 | B170: 9 | C170: 14 | D170: 7 | E170: 10.8 | F170: 31 | G170: -5.6 | H170: 485 | I170: 7 | J170: 184 | K170: 12 | L170: 0 | M170: 0 | N170: 0 | O170: 11.1 | P170: 32 | Q170: -4.7 | R170: 10.1 | S170: 32 | T170: -5.8 | U170: 485 | V170: 10.5 | W170: 35 | X170: -4.2 | Y170: 7.7 | Z170: 5.7 | AA170: 6.4 | AB170: 52.3
A171: 120201 | B171: 9 | C171: 14 | D171: 12 | E171: 10.8 | F171: 31 | G171: -5.5 | H171: 485 | I171: 7 | J171: 184 | K171: 12 | L171: 0 | M171: 0 | N171: 0 | O171: 11.1 | P171: 32 | Q171: -4.8 | R171: 10.1 | S171: 32 | T171: -5.8 | U171: 485 | V171: 10.5 | W171: 35 | X171: -4.2 | Y171: 7.7 | Z171: 5.7 | AA171: 7.7 | AB171: 52.3
A172: 120201 | B172: 9 | C172: 14 | D172: 17 | E172: 10.9 | F172: 31 | G172: -5.4 | H172: 485 | I172: 7 | J172: 184 | K172: 12 | L172: 0 | M172: 0 | N172: 0 | O172: 11.1 | P172: 33 | Q172: -4.5 | R172: 10.1 | S172: 32 | T172: -5.8 | U172: 485 | V172: 10.5 | W172: 35 | X172: -4.2 | Y172: 7.7 | Z172: 5.7 | AA172: 6.4 | AB172: 52.3
A173: 120201 | B173: 9 | C173: 14 | D173: 22 | E173: 10.9 | F173: 31 | G173: -5.6 | H173: 485 | I173: 7 | J173: 184 | K173: 12 | L173: 0 | M173: 0 | N173: 0 | O173: 11.1 | P173: 33 | Q173: -4.5 | R173: 10.1 | S173: 32 | T173: -5.8 | U173: 485 | V173: 10.5 | W173: 35 | X173: -4.2 | Y173: 7.7 | Z173: 5.7 | AA173: 6.4 | AB173: 52.3
A174: 120201 | B174: 9 | C174: 14 | D174: 27 | E174: 10.9 | F174: 31 | G174: -5.7 | H174: 485 | I174: 7 | J174: 184 | K174: 12 | L174: 0 | M174: 0 | N174: 0 | O174: 11.1 | P174: 32 | Q174: -4.7 | R174: 10.1 | S174: 32 | T174: -5.8 | U174: 485 | V174: 10.5 | W174: 35 | X174: -4.2 | Y174: 7.7 | Z174: 5.7 | AA174: 7.7 | AB174: 52.3
A175: 120201 | B175: 9 | C175: 14 | D175: 32 | E175: 10.9 | F175: 31 | G175: -5.7 | H175: 485 | I175: 7 | J175: 184 | K175: 12 | L175: 0 | M175: 0 | N175: 0 | O175: 11.1 | P175: 32 | Q175: -4.9 | R175: 10.1 | S175: 32 | T175: -5.8 | U175: 485 | V175: 10.5 | W175: 35 | X175: -4.2 | Y175: 7.7 | Z175: 5.7 | AA175: 7.7 | AB175: 52.3
A176: 120201 | B176: 9 | C176: 14 | D176: 37 | E176: 10.9 | F176: 31 | G176: -5.8 | H176: 485 | I176: 5 | J176: 170 | K176: 12 | L176: 0 | M176: 0 | N176: 0 | O176: 11.1 | P176: 32 | Q176: -4.8 | R176: 10.1 | S176: 32 | T176: -5.8 | U176: 485 | V176: 10.5 | W176: 35 | X176: -4.2 | Y176: 7.7 | Z176: 5.7 | AA176: 7.7 | AB176: 52.3
A177: 120201 | B177: 9 | C177: 14 | D177: 42 | E177: 10.9 | F177: 31 | G177: -5.6 | H177: 485 | I177: 5 | J177: 170 | K177: 12 | L177: 0 | M177: 0 | N177: 0 | O177: 11.1 | P177: 32 | Q177: -4.8 | R177: 10.1 | S177: 32 | T177: -5.8 | U177: 485 | V177: 10.5 | W177: 35 | X177: -4.2 | Y177: 7.7 | Z177: 5.7 | AA177: 7.7 | AB177: 52.3
A178: 120201 | B178: 9 | C178: 14 | D178: 47 | E178: 11 | F178: 31 | G178: -5.6 | H178: 485 | I178: 5 | J178: 170 | K178: 12 | L178: 0 | M178: 0 | N178: 0 | O178: 11.2 | P178: 32 | Q178: -4.8 | R178: 10.1 | S178: 32 | T178: -5.8 | U178: 485 | V178: 10.5 | W178: 35 | X178: -4.2 | Y178: 7.7 | Z178: 5.7 | AA178: 6.4 | AB178: 52.3
A179: 120201 | B179: 9 | C179: 14 | D179: 53 | E179: 11 | F179: 30 | G179: -5.9 | H179: 485 | I179: 5 | J179: 170 | K179: 12 | L179: 0 | M179: 0 | N179: 0 | O179: 11.2 | P179: 32 | Q179: -4.7 | R179: 10.1 | S179: 32 | T179: -5.8 | U179: 485 | V179: 10.5 | W179: 35 | X179: -4.2 | Y179: 7.7 | Z179: 5.7 | AA179: 6.4 | AB179: 52.3
A180: 120201 | B180: 9 | C180: 14 | D180: 57 | E180: 11 | F180: 30 | G180: -5.8 | H180: 485 | I180: 5 | J180: 170 | K180: 12 | L180: 0 | M180: 0 | N180: 0 | O180: 11.2 | P180: 32 | Q180: -4.8 | R180: 10.1 | S180: 32 | T180: -5.8 | U180: 485 | V180: 10.5 | W180: 35 | X180: -4.2 | Y180: 7.7 | Z180: 5.7 | AA180: 6.4 | AB180: 52.3
A181: 120201 | B181: 9 | C181: 15 | D181: 2 | E181: 11 | F181: 30 | G181: -5.7 | H181: 485 | I181: 5 | J181: 170 | K181: 12 | L181: 0 | M181: 0 | N181: 0 | O181: 11.2 | P181: 32 | Q181: -4.8 | R181: 10.1 | S181: 32 | T181: -5.8 | U181: 485 | V181: 10.5 | W181: 35 | X181: -4.2 | Y181: 7.7 | Z181: 5.7 | AA181: 6.4 | AB181: 52.3
A182: 120201 | B182: 9 | C182: 15 | D182: 7 | E182: 11 | F182: 30 | G182: -5.9 | H182: 485 | I182: 5 | J182: 170 | K182: 12 | L182: 0 | M182: 0 | N182: 0 | O182: 11.2 | P182: 32 | Q182: -4.8 | R182: 10.1 | S182: 32 | T182: -5.8 | U182: 485 | V182: 10.5 | W182: 35 | X182: -4.2 | Y182: 7.7 | Z182: 5.7 | AA182: 7.7 | AB182: 52.3
A183: 120201 | B183: 9 | C183: 15 | D183: 12 | E183: 11 | F183: 29 | G183: -6.1 | H183: 485 | I183: 5 | J183: 170 | K183: 12 | L183: 0 | M183: 0 | N183: 0 | O183: 11.4 | P183: 33 | Q183: -4.5 | R183: 10.1 | S183: 32 | T183: -5.8 | U183: 485 | V183: 10.5 | W183: 35 | X183: -4.2 | Y183: 7.7 | Z183: 5.7 | AA183: 6.4 | AB183: 52.3
A184: 120201 | B184: 9 | C184: 15 | D184: 17 | E184: 11 | F184: 30 | G184: -5.9 | H184: 485 | I184: 5 | J184: 170 | K184: 12 | L184: 0 | M184: 0 | N184: 0 | O184: 11.4 | P184: 33 | Q184: -4.4 | R184: 10.1 | S184: 32 | T184: -5.8 | U184: 485 | V184: 10.5 | W184: 35 | X184: -4.2 | Y184: 7.7 | Z184: 5.7 | AA184: 7.7 | AB184: 52.3
A185: 120201 | B185: 9 | C185: 15 | D185: 22 | E185: 11 | F185: 29 | G185: -6.1 | H185: 485 | I185: 5 | J185: 170 | K185: 12 | L185: 0 | M185: 0 | N185: 0 | O185: 11.4 | P185: 32 | Q185: -4.5 | R185: 10.1 | S185: 32 | T185: -5.8 | U185: 485 | V185: 10.5 | W185: 35 | X185: -4.2 | Y185: 7.7 | Z185: 5.7 | AA185: 7.7 | AB185: 52.3
A186: 120201 | B186: 9 | C186: 15 | D186: 27 | E186: 10.9 | F186: 29 | G186: -6.3 | H186: 485 | I186: 5 | J186: 170 | K186: 12 | L186: 0 | M186: 0 | N186: 0 | O186: 11.4 | P186: 33 | Q186: -4.4 | R186: 10.1 | S186: 32 | T186: -5.8 | U186: 485 | V186: 10.5 | W186: 35 | X186: -4.2 | Y186: 7.7 | Z186: 5.7 | AA186: 7.7 | AB186: 52.3
A187: 120201 | B187: 9 | C187: 15 | D187: 32 | E187: 10.9 | F187: 29 | G187: -6.4 | H187: 485 | I187: 5 | J187: 170 | K187: 12 | L187: 0 | M187: 0 | N187: 0 | O187: 11.5 | P187: 33 | Q187: -4.1 | R187: 10.1 | S187: 32 | T187: -5.8 | U187: 485 | V187: 10.5 | W187: 35 | X187: -4.2 | Y187: 7.7 | Z187: 5.7 | AA187: 6.4 | AB187: 52.3
A188: 120201 | B188: 9 | C188: 15 | D188: 37 | E188: 10.9 | F188: 30 | G188: -6.1 | H188: 485 | I188: 5 | J188: 170 | K188: 12 | L188: 0 | M188: 0 | N188: 0 | O188: 11.5 | P188: 34 | Q188: -3.9 | R188: 10.1 | S188: 32 | T188: -5.8 | U188: 485 | V188: 10.5 | W188: 35 | X188: -4.2 | Y188: 7.7 | Z188: 5.7 | AA188: 7.7 | AB188: 52.3
A189: 120201 | B189: 9 | C189: 15 | D189: 43 | E189: 10.9 | F189: 30 | G189: -6.1 | H189: 485 | I189: 5 | J189: 170 | K189: 12 | L189: 0 | M189: 0 | N189: 0 | O189: 11.5 | P189: 34 | Q189: -3.8 | R189: 10.1 | S189: 32 | T189: -5.8 | U189: 485 | V189: 10.5 | W189: 35 | X189: -4.2 | Y189: 7.7 | Z189: 5.7 | AA189: 7.7 | AB189: 52.3
A190: 120201 | B190: 9 | C190: 15 | D190: 47 | E190: 10.9 | F190: 29 | G190: -6.3 | H190: 485 | I190: 5 | J190: 170 | K190: 12 | L190: 0 | M190: 0 | N190: 0 | O190: 11.5 | P190: 35 | Q190: -3.4 | R190: 10.1 | S190: 32 | T190: -5.8 | U190: 485 | V190: 10.5 | W190: 35 | X190: -4.2 | Y190: 7.7 | Z190: 5.7 | AA190: 6.4 | AB190: 52.3
A191: 120201 | B191: 9 | C191: 15 | D191: 52 | E191: 10.9 | F191: 30 | G191: -6 | H191: 485 | I191: 5 | J191: 170 | K191: 12 | L191: 0 | M191: 0 | N191: 0 | O191: 11.5 | P191: 34 | Q191: -3.7 | R191: 10.1 | S191: 32 | T191: -5.8 | U191: 485 | V191: 10.5 | W191: 35 | X191: -4.2 | Y191: 7.7 | Z191: 5.7 | AA191: 6.4 | AB191: 52.3
A192: 120201 | B192: 9 | C192: 15 | D192: 57 | E192: 11 | F192: 30 | G192: -6 | H192: 485 | I192: 5 | J192: 170 | K192: 12 | L192: 0 | M192: 0 | N192: 0 | O192: 11.4 | P192: 33 | Q192: -4.2 | R192: 10.1 | S192: 32 | T192: -5.8 | U192: 485 | V192: 10.5 | W192: 35 | X192: -4.2 | Y192: 7.7 | Z192: 5.7 | AA192: 7.7 | AB192: 52.3
A193: 120201 | B193: 9 | C193: 16 | D193: 2 | E193: 11 | F193: 30 | G193: -5.9 | H193: 485 | I193: 5 | J193: 170 | K193: 12 | L193: 0 | M193: 0 | N193: 0 | O193: 11.2 | P193: 34 | Q193: -4.2 | R193: 10.1 | S193: 32 | T193: -5.8 | U193: 485 | V193: 10.5 | W193: 35 | X193: -4.2 | Y193: 7.7 | Z193: 5.7 | AA193: 7.7 | AB193: 52.3
A194: 120201 | B194: 9 | C194: 16 | D194: 7 | E194: 11 | F194: 30 | G194: -5.9 | H194: 485 | I194: 5 | J194: 170 | K194: 12 | L194: 0 | M194: 0 | N194: 0 | O194: 11.1 | P194: 34 | Q194: -4.3 | R194: 10.1 | S194: 32 | T194: -5.8 | U194: 485 | V194: 10.5 | W194: 35 | X194: -4.2 | Y194: 7.7 | Z194: 5.7 | AA194: 6.4 | AB194: 52.3
A195: 120201 | B195: 9 | C195: 16 | D195: 12 | E195: 11 | F195: 30 | G195: -6 | H195: 485 | I195: 5 | J195: 170 | K195: 12 | L195: 0 | M195: 0 | N195: 0 | O195: 11 | P195: 34 | Q195: -4.4 | R195: 10.1 | S195: 32 | T195: -5.8 | U195: 485 | V195: 10.5 | W195: 35 | X195: -4.2 | Y195: 7.7 | Z195: 5.7 | AA195: 7.7 | AB195: 52.3
A196: 120201 | B196: 9 | C196: 16 | D196: 17 | E196: 11 | F196: 30 | G196: -6 | H196: 485 | I196: 5 | J196: 170 | K196: 12 | L196: 0 | M196: 0 | N196: 0 | O196: 10.9 | P196: 34 | Q196: -4.4 | R196: 10.1 | S196: 32 | T196: -5.8 | U196: 485 | V196: 10.5 | W196: 35 | X196: -4.2 | Y196: 7.7 | Z196: 5.7 | AA196: 7.7 | AB196: 52.3
A197: 120201 | B197: 9 | C197: 16 | D197: 22 | E197: 11 | F197: 29 | G197: -6.1 | H197: 485 | I197: 5 | J197: 170 | K197: 12 | L197: 0 | M197: 0 | N197: 0 | O197: 10.9 | P197: 34 | Q197: -4.4 | R197: 10.1 | S197: 32 | T197: -5.8 | U197: 485 | V197: 10.5 | W197: 35 | X197: -4.2 | Y197: 7.7 | Z197: 5.7 | AA197: 7.7 | AB197: 52.3
A198: 120201 | B198: 9 | C198: 16 | D198: 27 | E198: 11 | F198: 29 | G198: -6.3 | H198: 485 | I198: 5 | J198: 170 | K198: 12 | L198: 0 | M198: 0 | N198: 0 | O198: 10.7 | P198: 35 | Q198: -4.3 | R198: 10.1 | S198: 32 | T198: -5.8 | U198: 485 | V198: 10.5 | W198: 35 | X198: -4.2 | Y198: 7.7 | Z198: 5.7 | AA198: 7.7 | AB198: 52.3
A199: 120201 | B199: 9 | C199: 16 | D199: 32 | E199: 11.2 | F199: 30 | G199: -5.9 | H199: 485 | I199: 5 | J199: 170 | K199: 12 | L199: 0 | M199: 0 | N199: 0 | O199: 10.7 | P199: 34 | Q199: -4.7 | R199: 10.1 | S199: 32 | T199: -5.8 | U199: 485 | V199: 10.5 | W199: 35 | X199: -4.2 | Y199: 7.7 | Z199: 5.7 | AA199: 6.4 | AB199: 52.3
A200: 120201 | B200: 9 | C200: 16 | D200: 37 | E200: 11.2 | F200: 29 | G200: -6.2 | H200: 485 | I200: 9 | J200: 178 | K200: 12 | L200: 0 | M200: 0 | N200: 0 | O200: 10.7 | P200: 33 | Q200: -4.9 | R200: 10.1 | S200: 32 | T200: -5.8 | U200: 485 | V200: 10.5 | W200: 35 | X200: -4.2 | Y200: 7.7 | Z200: 5.7 | AA200: 7.7 | AB200: 52.3
... 2050 more rows

Sheet Sheet2

Sheet Sheet3
